Workbook

Sheet sunsettable
A1: Calculation of local times of sunrise, solar noon, sunset, dawn, and dusk based on the calculation procedure by NOAA (http://www.srrb.noaa.gov/highlights/sunrise/sunrise.html) | C1: Forrest Hill, CA
A3: Input
A4: latitude in decimal degrees (positive in northern hemisphere) | B4: =38.967 -> 38.967
A5: longitude in decimal degrees (negative for western hemisphere) | B5: =-120.878 -> -120.878 | C5: dusk on offset | D5: 8
A6: year | B6: 2012 | C6: dawn Off offset | D6: 9 | G6: =MIN($E$83:$E$1947) -> 19:00:00 | H6: Earliest ON time
A7: month | B7: 1 | G7: =CONCATENATE(TEXT(HOUR($G$6),"#"),":00:00") -> 19:00:00 | H7: Earliest start time hour (Set your wall timer and TaskScheduler to start the script at this time)
A8: day | B8: 1 | G8: =TIME(19,0,0) -> 19:00:00 | H8: But never before | J8: 9 | K8: maximum duration
A9: time zone in hours relative to GMT/UTC (PST= -8, MST= -7, CST= -6, EST= -5) | B9: -8 | C9: DST Start | D9: DST End | E9: Note: DST starts the 2nd sunday in march and ends the day before the 1st sunday in November.
A10: daylight savings time (no= 0, yes= 1) | B10: 1 | C10: 2011-03-13 | D10: 2011-11-06
A12: Output (local time in days) | G12: =MAX($M$83:$M$1947) -> 07:41:33.908 | H12: Latest OFF time
A13: astronomical dawn (sun is 18 degrees below horizon) | B13: =dawn(B4,B5,B6,B7,B8,B9,B10,18) -> 06:46:38.245 | G13: =CONCATENATE(TEXT(HOUR($G$12)+1,"#"),":00:00") -> 8:00:00 | H13: Latest wall timer hour (Set your wall timer and Task Scheduler to stop the script at this time)
A14: nautical dawn (sun is 12 degrees below horizon) | B14: =dawn(B4,B5,B6,B7,B8,B9,B10,12) -> 07:19:02.923
A15: civil dawn (sun is 6 degrees below horizon) | B15: =dawn(B4,B5,B6,B7,B8,B9,B10,6) -> 07:52:27.072
A16: sunrise (sun is 0.833 degrees below horizon to account for refraction) | B16: =sunrise(B4,B5,B6,B7,B8,B9,B10) -> 08:22:19.561
A17: solar noon (sun is at its highest point in the sky for this day) | B17: =solarnoon(B4,B5,B6,B7,B8,B9,B10) -> 13:06:59.127
A18: sunset (sun is 0.833 degrees below horizon to account for refraction) | B18: =sunset(B4,B5,B6,B7,B8,B9,B10) -> 17:51:46.629
A19: civil dusk (sun is 6 degrees below horizon) | B19: =dusk(B4,B5,B6,B7,B8,B9,B10,6) -> 18:21:38.420
A20: nautical dusk (sun is 12 degrees below horizon) | B20: =dusk(B4,B5,B6,B7,B8,B9,B10,12) -> 18:55:01.959
A21: astronomical dusk (sun is 18 degrees below horizon) | B21: =dusk(B4,B5,B6,B7,B8,B9,B10,18) -> 19:27:26.182
A22: =CONCATENATE("Dynamic dawn (sun is ",D5,"° below horizon)") -> Dynamic dawn (sun is 8° below horizon) | B22: =dusk(B4,B5,B6,B7,B8,B9,B10,D6) -> 18:38:28.939
A23: =CONCATENATE("Dynamic dusk (sun is ",D5,"° below horizon)") -> Dynamic dusk (sun is 8° below horizon) | B23: =dusk(B4,B5,B6,B7,B8,B9,B10,D5) -> 18:32:54.197
E73: ```
C76: =MIN($E$83:$E$449) -> 19:00:00 | D76: Earliest ON time
C77: =CONCATENATE(TEXT(HOUR($C$76),"#"),":00:00") -> 19:00:00 | D77: Delay will be from the earliest start time hour (Set your TaskScheduler to start the script at this time)
C78: =$G$13 -> 8:00:00 | D78: Wall Timer OFF
I79: Dusk | J79: Dusk | K79: Dawn | M79: =dusk($B$4,$B$5,YEAR(C83),MONTH(C83),DAY(C83),$B$9,$H83,$D$5) -> 17:32:54.197 | N79: =MIN(G7,G13) -> 00:00:00
I80: (UTC at | J80: (LDT at | K80: (UTC at
D81: Dawn OFF | E81: Dusk ON | F81: Dur- | I81: =CONCATENATE($D$5,"°below") -> 8°below | J81: =CONCATENATE($D$5,"° below ") -> 8° below | K81: =CONCATENATE($D$6,"° below") -> 9° below
C82: Date | D82: =CONCATENATE($D$5,"° ") -> 8° | E82: =CONCATENATE($D$5,"° ") -> 8° | F82: ation | G82: Delay | H82: DST | I82: horizon | J82: horizon | K82: horizon | L82: date | M82: sunrise | N82: sunset | O82: Day # | Q82: durz | R82: delta | S82: newdur
C83: =TEXT(L83,"mm/dd/yyyy") -> 01/01/2012 | D83: =TEXT(dawn($B$4,$B$5,YEAR($C83+1),MONTH($C83+1),DAY($C83+1),$B$9,$H83,$D$6),"hh:mm:ss") -> 06:35:47 | E83: =IF(dusk($B$4,$B$5,YEAR(C83),MONTH(C83),DAY(C83),$B$9,$H83,$D$5)<$G$8,$G$8,dusk($B$4,$B$5,YEAR(C83),MONTH(C83),DAY(C83),$B$9,$H83,$D$5)) -> 19:00:00 | F83: =((TIME(23,59,59.999)-E83)+D83)*24 -> 11.59611111 | G83: =HOUR(E83-$C$77)*3600+MINUTE(E83-$C$77)*60+SECOND(E83-$C$77) -> 0 | H83: =IF($B$10=1,IF(MATCH($L83,DATE(YEAR($L83),{1,3,11},{1,15,8})-WEEKDAY(DATE(YEAR($L83),{1,3,11},7)))=2,1,0),0) -> 0 | I83: =dusk($B$4,$B$5,YEAR($C83),MONTH($C83),DAY($C83),0,0,$D$5) -> 1.064516167 | J83: =dusk($B$4,$B$5,YEAR($C83),MONTH($C83),DAY($C83),$B$9,$H83,$D$5) -> 17:32:54.197 | K83: =dawn($B$4,$B$5,YEAR($C83+1),MONTH($C83+1),DAY($C83+1),0,0,$D$6) -> 14:35:46.679 | L83: =DATE($B$6,1,1) -> 2012-01-01 | M83: =dawn($B$4,$B$5,YEAR($C83+1),MONTH($C83+1),DAY($C83+1),$B$9,$H83,0) -> 07:27:23.318 | N83: =dusk($B$4,$B$5,YEAR(C83),MONTH(C83),DAY(C83),$B$9,$H83,0) -> 16:46:50.451 | O83: 0 | P83: =MIN(dusk($B$4,$B$5,YEAR(C83),MONTH(C83),DAY(C83),0,0,$D$5),E83) -> 19:00:00 | Q83: =IF(I83>K83,((TIME(23,59,59.999)-I83)+K83)*24,(K83-I83)*24) -> 13.0476339 | R83: =(E83-J83)*24 -> 1.451611993 | S83: =(Q83-R83) -> 11.59602191
C84: 01/02/2012 | D84: 06:35:55 | E84: =IF(dusk($B$4,$B$5,YEAR(C84),MONTH(C84),DAY(C84),$B$9,$H84,$D$5)<$G$8,$G$8,dusk($B$4,$B$5,YEAR(C84),MONTH(C84),DAY(C84),$B$9,$H84,$D$5)) -> 19:00:00 | F84: 11.59833333 | G84: =HOUR(E84-$C$77)*3600+MINUTE(E84-$C$77)*60+SECOND(E84-$C$77) -> 0 | H84: =IF($B$10=1,IF(MATCH($L84,DATE(YEAR($L84),{1,3,11},{1,15,8})-WEEKDAY(DATE(YEAR($L84),{1,3,11},7)))=2,1,0),0) -> 0 | I84: 1.065056069 | J84: =dusk($B$4,$B$5,YEAR($C84),MONTH($C84),DAY($C84),$B$9,$H84,$D$5) -> 17:33:40.844 | K84: =dawn($B$4,$B$5,YEAR($C84+1),MONTH($C84+1),DAY($C84+1),0,0,$D$6) -> 14:35:55.231 | L84: =L83+1 -> 2012-01-02 | M84: =dawn($B$4,$B$5,YEAR($C84+1),MONTH($C84+1),DAY($C84+1),$B$9,$H84,0) -> 07:27:28.616 | N84: =dusk($B$4,$B$5,YEAR(C84),MONTH(C84),DAY(C84),$B$9,$H84,0) -> 16:47:39.925 | O84: =O83+1 -> 1 | P84: =MIN(dusk($B$4,$B$5,YEAR(C84),MONTH(C84),DAY(C84),0,0,$D$5),E84) -> 19:00:00 | Q84: =IF(I84>K84,((TIME(23,59,59.999)-I84)+K84)*24,(K84-I84)*24) -> 13.03705177 | R84: =(E84-J84)*24 -> 1.438654341 | S84: =(Q84-R84) -> 11.59839742
C85: 01/03/2012 | D85: 06:36:02 | E85: 19:00:00 | F85: 11.60027778 | G85: 0 | H85: =IF($B$10=1,IF(MATCH($L85,DATE(YEAR($L85),{1,3,11},{1,15,8})-WEEKDAY(DATE(YEAR($L85),{1,3,11},7)))=2,1,0),0) -> 0 | I85: 1.06561029 | J85: 17:34:28.729 | K85: 14:36:01.867 | L85: =L84+1 -> 2012-01-03 | M85: 07:27:31.757 | N85: 16:48:30.861 | O85: =O84+1 -> 2 | P85: 19:00:00 | Q85: 13.02559378 | R85: 1.425353038 | S85: 11.60024074
C86: 01/04/2012 | D86: 06:36:07 | E86: 19:00:00 | F86: 11.60166667 | G86: 0 | H86: =IF($B$10=1,IF(MATCH($L86,DATE(YEAR($L86),{1,3,11},{1,15,8})-WEEKDAY(DATE(YEAR($L86),{1,3,11},7)))=2,1,0),0) -> 0 | I86: 1.066178308 | J86: 17:35:17.806 | K86: 14:36:06.573 | L86: 2012-01-04 | M86: 07:27:32.736 | N86: 16:49:23.205 | O86: 3 | P86: 19:00:00 | Q86: 13.01326879 | R86: 1.411720605 | S86: 11.60154818
C87: 01/05/2012 | D87: 06:36:09 | E87: 19:00:00 | F87: 11.60222222 | G87: 0 | H87: =IF($B$10=1,IF(MATCH($L87,DATE(YEAR($L87),{1,3,11},{1,15,8})-WEEKDAY(DATE(YEAR($L87),{1,3,11},7)))=2,1,0),0) -> 0 | I87: 1.066759596 | J87: 17:36:08.029 | K87: 14:36:09.340 | L87: 2012-01-05 | M87: 07:27:31.548 | N87: 16:50:16.906 | O87: 4 | P87: 19:00:00 | Q87: 13.00008625 | R87: 1.397769689 | S87: 11.60231656
C88: 01/06/2012 | D88: 06:36:10 | E88: 19:00:00 | F88: 11.6025 | G88: 0 | H88: =IF($B$10=1,IF(MATCH($L88,DATE(YEAR($L88),{1,3,11},{1,15,8})-WEEKDAY(DATE(YEAR($L88),{1,3,11},7)))=2,1,0),0) -> 0 | I88: 1.067353624 | J88: 17:36:59.353 | K88: 14:36:10.155 | L88: 2012-01-06 | M88: 07:27:28.193 | N88: 16:51:11.910 | O88: 5 | P88: 19:00:00 | Q88: 12.98605618 | R88: 1.383513033 | S88: 11.60254315
C89: 01/07/2012 | D89: 06:36:09 | E89: 19:00:00 | F89: 11.60222222 | G89: 0 | H89: =IF($B$10=1,IF(MATCH($L89,DATE(YEAR($L89),{1,3,11},{1,15,8})-WEEKDAY(DATE(YEAR($L89),{1,3,11},7)))=2,1,0),0) -> 0 | I89: 1.067959856 | J89: 17:37:51.732 | K89: 14:36:09.012 | L89: 2012-01-07 | M89: 07:27:22.670 | N89: 16:52:08.164 | O89: 6 | P89: 19:00:00 | Q89: 12.97118914 | R89: 1.368963451 | S89: 11.60222569
C90: 01/08/2012 | D90: 06:36:06 | E90: 19:00:00 | F90: 11.60138889 | G90: 0 | H90: =IF($B$10=1,IF(MATCH($L90,DATE(YEAR($L90),{1,3,11},{1,15,8})-WEEKDAY(DATE(YEAR($L90),{1,3,11},7)))=2,1,0),0) -> 0 | I90: 1.068577758 | J90: 17:38:45.118 | K90: 14:36:05.905 | L90: 2012-01-08 | M90: 07:27:14.983 | N90: 16:53:05.614 | O90: 7 | P90: 19:00:00 | Q90: 12.95549618 | R90: 1.354133801 | S90: 11.60136238
C91: 01/09/2012 | D91: 06:36:01 | E91: 19:00:00 | F91: 11.6 | G91: 0 | H91: =IF($B$10=1,IF(MATCH($L91,DATE(YEAR($L91),{1,3,11},{1,15,8})-WEEKDAY(DATE(YEAR($L91),{1,3,11},7)))=2,1,0),0) -> 0 | I91: 1.069206793 | J91: 17:39:39.467 | K91: 14:36:00.827 | L91: 2012-01-09 | M91: 07:27:05.136 | N91: 16:54:04.204 | O91: 8 | P91: 19:00:00 | Q91: 12.93898884 | R91: 1.339036957 | S91: 11.59995189
C92: 01/10/2012 | D92: 06:35:54 | E92: 19:00:00 | F92: 11.59805556 | G92: 0 | H92: =IF($B$10=1,IF(MATCH($L92,DATE(YEAR($L92),{1,3,11},{1,15,8})-WEEKDAY(DATE(YEAR($L92),{1,3,11},7)))=2,1,0),0) -> 0 | I92: 1.069846426 | J92: 17:40:34.731 | K92: 14:35:53.776 | L92: 2012-01-10 | M92: 07:26:53.135 | N92: 16:55:03.880 | O92: 9 | P92: 19:00:00 | Q92: 12.9216791 | R92: 1.323685782 | S92: 11.59799332
C93: 01/11/2012 | D93: 06:35:45 | E93: 19:00:00 | F93: 11.59555556 | G93: 0 | H93: =IF($B$10=1,IF(MATCH($L93,DATE(YEAR($L93),{1,3,11},{1,15,8})-WEEKDAY(DATE(YEAR($L93),{1,3,11},7)))=2,1,0),0) -> 0 | I93: 1.070496121 | J93: 17:41:30.865 | K93: 14:35:44.750 | L93: 2012-01-11 | M93: 07:26:38.988 | N93: 16:56:04.587 | O93: 10 | P93: 19:00:00 | Q93: 12.90357933 | R93: 1.308093106 | S93: 11.59548622
C94: 01/12/2012 | D94: 06:35:34 | E94: 19:00:00 | F94: 11.5925 | G94: 0 | H94: =IF($B$10=1,IF(MATCH($L94,DATE(YEAR($L94),{1,3,11},{1,15,8})-WEEKDAY(DATE(YEAR($L94),{1,3,11},7)))=2,1,0),0) -> 0 | I94: 1.071155346 | J94: 17:42:27.822 | K94: 14:35:33.750 | L94: 2012-01-12 | M94: 07:26:22.706 | N94: 16:57:06.270 | O94: 11 | P94: 19:00:00 | Q94: 12.88470229 | R94: 1.292271691 | S94: 11.5924306
C95: 01/13/2012 | D95: 06:35:21 | E95: 19:00:00 | F95: 11.58888889 | G95: 0 | H95: =IF($B$10=1,IF(MATCH($L95,DATE(YEAR($L95),{1,3,11},{1,15,8})-WEEKDAY(DATE(YEAR($L95),{1,3,11},7)))=2,1,0),0) -> 0 | I95: 1.071823574 | J95: 17:43:25.557 | K95: 14:35:20.777 | L95: 2012-01-13 | M95: 07:26:04.300 | N95: 16:58:08.874 | O95: 12 | P95: 19:00:00 | Q95: 12.86506106 | R95: 1.276234216 | S95: 11.58882685
C96: 01/14/2012 | D96: 06:35:06 | E96: 19:00:00 | F96: 11.58472222 | G96: 0 | H96: =IF($B$10=1,IF(MATCH($L96,DATE(YEAR($L96),{1,3,11},{1,15,8})-WEEKDAY(DATE(YEAR($L96),{1,3,11},7)))=2,1,0),0) -> 0 | I96: 1.072500282 | J96: 17:44:24.024 | K96: 14:35:05.833 | L96: 2012-01-14 | M96: 07:25:43.783 | N96: 16:59:12.345 | O96: 13 | P96: 19:00:00 | Q96: 12.84466906 | R96: 1.259993242 | S96: 11.58467582
C97: 01/15/2012 | D97: 06:34:49 | E97: 19:00:00 | F97: 11.58 | G97: 0 | H97: =IF($B$10=1,IF(MATCH($L97,DATE(YEAR($L97),{1,3,11},{1,15,8})-WEEKDAY(DATE(YEAR($L97),{1,3,11},7)))=2,1,0),0) -> 0 | I97: 1.07318495 | J97: 17:45:23.180 | K97: 14:34:48.923 | L97: 2012-01-15 | M97: 07:25:21.171 | N97: 17:00:16.628 | O97: 14 | P97: 19:00:00 | Q97: 12.82353994 | R97: 1.243561197 | S97: 11.57997874
C98: 01/16/2012 | D98: 06:34:30 | E98: 19:00:00 | F98: 11.57472222 | G98: 0 | H98: =IF($B$10=1,IF(MATCH($L98,DATE(YEAR($L98),{1,3,11},{1,15,8})-WEEKDAY(DATE(YEAR($L98),{1,3,11},7)))=2,1,0),0) -> 0 | I98: 1.073877069 | J98: 17:46:22.979 | K98: 14:34:30.054 | L98: 2012-01-16 | M98: 07:24:56.479 | N98: 17:01:21.670 | O98: 15 | P98: 19:00:00 | Q98: 12.80168761 | R98: 1.226950345 | S98: 11.57473726
C99: 01/17/2012 | D99: 06:34:09 | E99: 19:00:00 | F99: 11.56888889 | G99: 0 | H99: =IF($B$10=1,IF(MATCH($L99,DATE(YEAR($L99),{1,3,11},{1,15,8})-WEEKDAY(DATE(YEAR($L99),{1,3,11},7)))=2,1,0),0) -> 0 | I99: 1.074576135 | J99: 17:47:23.378 | K99: 14:34:09.232 | L99: 2012-01-17 | M99: 07:24:29.726 | N99: 17:02:27.417 | O99: 16 | P99: 19:00:00 | Q99: 12.77912617 | R99: 1.210172766 | S99: 11.56895341
C100: 01/18/2012 | D100: 06:33:46 | E100: 19:00:00 | F100: 11.5625 | G100: 0 | H100: =IF($B$10=1,IF(MATCH($L100,DATE(YEAR($L100),{1,3,11},{1,15,8})-WEEKDAY(DATE(YEAR($L100),{1,3,11},7)))=2,1,0),0) -> 0 | I100: 1.075281653 | J100: 17:48:24.335 | K100: 14:33:46.466 | L100: 2012-01-18 | M100: 07:24:00.932 | N100: 17:03:33.818 | O100: 17 | P100: 19:00:00 | Q100: 12.75586992 | R100: 1.193240337 | S100: 11.56262958
C101: 01/19/2012 | D101: 06:33:22 | E101: 19:00:00 | F101: 11.55583333 | G101: 0 | H101: =IF($B$10=1,IF(MATCH($L101,DATE(YEAR($L101),{1,3,11},{1,15,8})-WEEKDAY(DATE(YEAR($L101),{1,3,11},7)))=2,1,0),0) -> 0 | I101: 1.075993137 | J101: 17:49:25.807 | K101: 14:33:21.767 | L101: 2012-01-19 | M101: 07:23:30.116 | N101: 17:04:40.820 | O101: 18 | P101: 19:00:00 | Q101: 12.73193326 | R101: 1.176164708 | S101: 11.55576855
C102: 01/20/2012 | D102: 06:32:55 | E102: 19:00:00 | F102: 11.54833333 | G102: 0 | H102: =IF($B$10=1,IF(MATCH($L102,DATE(YEAR($L102),{1,3,11},{1,15,8})-WEEKDAY(DATE(YEAR($L102),{1,3,11},7)))=2,1,0),0) -> 0 | I102: 1.076710113 | J102: 17:50:27.754 | K102: 14:32:55.144 | L102: 2012-01-20 | M102: 07:22:57.300 | N102: 17:05:48.374 | O102: 19 | P102: 19:00:00 | Q102: 12.70733072 | R102: 1.158957283 | S102: 11.54837344
C103: 01/21/2012 | D103: 06:32:27 | E103: 19:00:00 | F103: 11.54055556 | G103: 0 | H103: =IF($B$10=1,IF(MATCH($L103,DATE(YEAR($L103),{1,3,11},{1,15,8})-WEEKDAY(DATE(YEAR($L103),{1,3,11},7)))=2,1,0),0) -> 0 | I103: 1.077432117 | J103: 17:51:30.135 | K103: 14:32:26.612 | L103: 2012-01-21 | M103: 07:22:22.508 | N103: 17:06:56.428 | O103: 20 | P103: 19:00:00 | Q103: 12.68207691 | R103: 1.141629202 | S103: 11.54044771
C104: 01/22/2012 | D104: 06:31:56 | E104: 19:00:00 | F104: 11.53194444 | G104: 0 | H104: =IF($B$10=1,IF(MATCH($L104,DATE(YEAR($L104),{1,3,11},{1,15,8})-WEEKDAY(DATE(YEAR($L104),{1,3,11},7)))=2,1,0),0) -> 0 | I104: 1.078158695 | J104: 17:52:32.911 | K104: 14:31:56.183 | L104: 2012-01-22 | M104: 07:21:45.764 | N104: 17:08:04.935 | O104: 21 | P104: 19:00:00 | Q104: 12.65618649 | R104: 1.124191324 | S104: 11.53199516
C105: 01/23/2012 | D105: 06:31:24 | E105: 19:00:00 | F105: 11.52305556 | G105: 0 | H105: =IF($B$10=1,IF(MATCH($L105,DATE(YEAR($L105),{1,3,11},{1,15,8})-WEEKDAY(DATE(YEAR($L105),{1,3,11},7)))=2,1,0),0) -> 0 | I105: 1.078889408 | J105: 17:53:36.045 | K105: 14:31:23.872 | L105: 2012-01-23 | M105: 07:21:07.093 | N105: 17:09:13.848 | O105: 22 | P105: 19:00:00 | Q105: 12.62967411 | R105: 1.106654211 | S105: 11.5230199
C106: 01/24/2012 | D106: 06:30:50 | E106: 19:00:00 | F106: 11.51361111 | G106: 0 | H106: =IF($B$10=1,IF(MATCH($L106,DATE(YEAR($L106),{1,3,11},{1,15,8})-WEEKDAY(DATE(YEAR($L106),{1,3,11},7)))=2,1,0),0) -> 0 | I106: 1.079623829 | J106: 17:54:39.499 | K106: 14:30:49.695 | L106: 2012-01-24 | M106: 07:20:26.520 | N106: 17:10:23.118 | O106: 23 | P106: 19:00:00 | Q106: 12.60255446 | R106: 1.089028112 | S106: 11.51352635
C107: 01/25/2012 | D107: 06:30:14 | E107: 19:00:00 | F107: 11.50361111 | G107: 0 | H107: =IF($B$10=1,IF(MATCH($L107,DATE(YEAR($L107),{1,3,11},{1,15,8})-WEEKDAY(DATE(YEAR($L107),{1,3,11},7)))=2,1,0),0) -> 0 | I107: 1.080361544 | J107: 17:55:43.237 | K107: 14:30:13.669 | L107: 2012-01-25 | M107: 07:19:44.075 | N107: 17:11:32.703 | O107: 24 | P107: 19:00:00 | Q107: 12.57484217 | R107: 1.071322951 | S107: 11.50351922
C108: 01/26/2012 | D108: 06:29:36 | E108: 19:00:00 | F108: 11.49305556 | G108: 0 | H108: =IF($B$10=1,IF(MATCH($L108,DATE(YEAR($L108),{1,3,11},{1,15,8})-WEEKDAY(DATE(YEAR($L108),{1,3,11},7)))=2,1,0),0) -> 0 | I108: 1.081102154 | J108: 17:56:47.226 | K108: 14:29:35.813 | L108: 2012-01-26 | M108: 07:18:59.783 | N108: 17:12:42.557 | O108: 25 | P108: 19:00:00 | Q108: 12.54655182 | R108: 1.053548314 | S108: 11.4930035
C109: 01/27/2012 | D109: 06:28:56 | E109: 19:00:00 | F109: 11.48194444 | G109: 0 | H109: =IF($B$10=1,IF(MATCH($L109,DATE(YEAR($L109),{1,3,11},{1,15,8})-WEEKDAY(DATE(YEAR($L109),{1,3,11},7)))=2,1,0),0) -> 0 | I109: 1.081845273 | J109: 17:57:51.432 | K109: 14:28:56.144 | L109: 2012-01-27 | M109: 07:18:13.674 | N109: 17:13:52.640 | O109: 26 | P109: 19:00:00 | Q109: 12.5176979 | R109: 1.035713436 | S109: 11.48198446
C110: 01/28/2012 | D110: 06:28:15 | E110: 19:00:00 | F110: 11.47055556 | G110: 0 | H110: =IF($B$10=1,IF(MATCH($L110,DATE(YEAR($L110),{1,3,11},{1,15,8})-WEEKDAY(DATE(YEAR($L110),{1,3,11},7)))=2,1,0),0) -> 0 | I110: 1.082590533 | J110: 17:58:55.822 | K110: 14:28:14.683 | L110: 2012-01-28 | M110: 07:17:25.779 | N110: 17:15:02.909 | O110: 27 | P110: 19:00:00 | Q110: 12.48829481 | R110: 1.017827197 | S110: 11.47046761
C111: 01/29/2012 | D111: 06:27:31 | E111: 19:00:00 | F111: 11.45833333 | G111: 0 | H111: =IF($B$10=1,IF(MATCH($L111,DATE(YEAR($L111),{1,3,11},{1,15,8})-WEEKDAY(DATE(YEAR($L111),{1,3,11},7)))=2,1,0),0) -> 0 | I111: 1.083337579 | J111: 18:00:00.367 | K111: 14:27:31.451 | L111: 2012-01-29 | M111: 07:16:36.126 | N111: 17:16:13.326 | O111: 28 | P111: 19:00:00 | Q111: 12.45835682 | R111: 0.9998981059 | S111: 11.45845872
C112: 01/30/2012 | D112: 06:26:46 | E112: 19:00:00 | F112: 11.44583333 | G112: 0 | H112: =IF($B$10=1,IF(MATCH($L112,DATE(YEAR($L112),{1,3,11},{1,15,8})-WEEKDAY(DATE(YEAR($L112),{1,3,11},7)))=2,1,0),0) -> 0 | I112: 1.084086071 | J112: 18:01:05.037 | K112: 14:26:46.470 | L112: 2012-01-30 | M112: 07:15:44.746 | N112: 17:17:23.852 | O112: 29 | P112: 19:00:00 | Q112: 12.42789808 | R112: 0.9819343003 | S112: 11.44596378
C113: 01/31/2012 | D113: 06:26:00 | E113: 19:00:00 | F113: 11.43305556 | G113: 0 | H113: =IF($B$10=1,IF(MATCH($L113,DATE(YEAR($L113),{1,3,11},{1,15,8})-WEEKDAY(DATE(YEAR($L113),{1,3,11},7)))=2,1,0),0) -> 0 | I113: 1.084835686 | J113: 18:02:09.803 | K113: 14:25:59.760 | L113: 2012-01-31 | M113: 07:14:51.672 | N113: 17:18:34.452 | O113: 30 | P113: 19:00:00 | Q113: 12.39693255 | R113: 0.9639435364 | S113: 11.43298902
C114: 02/01/2012 | D114: 06:25:11 | E114: 19:00:00 | F114: 11.41944444 | G114: 0 | H114: =IF($B$10=1,IF(MATCH($L114,DATE(YEAR($L114),{1,3,11},{1,15,8})-WEEKDAY(DATE(YEAR($L114),{1,3,11},7)))=2,1,0),0) -> 0 | I114: 1.085586117 | J114: 18:03:14.641 | K114: 14:25:11.347 | L114: 2012-02-01 | M114: 07:13:56.936 | N114: 17:19:45.091 | O114: 31 | P114: 19:00:00 | Q114: 12.36547404 | R114: 0.9459331857 | S114: 11.41954085
C115: 02/02/2012 | D115: 06:24:21 | E115: 19:00:00 | F115: 11.40555556 | G115: 0 | H115: =IF($B$10=1,IF(MATCH($L115,DATE(YEAR($L115),{1,3,11},{1,15,8})-WEEKDAY(DATE(YEAR($L115),{1,3,11},7)))=2,1,0),0) -> 0 | I115: 1.086337074 | J115: 18:04:19.523 | K115: 14:24:21.253 | L115: 2012-02-02 | M115: 07:13:00.569 | N115: 17:20:55.736 | O115: 32 | P115: 19:00:00 | Q115: 12.33353615 | R115: 0.9279102319 | S115: 11.40562592
C116: 02/03/2012 | D116: 06:23:30 | E116: 19:00:00 | F116: 11.39138889 | G116: 0 | H116: =IF($B$10=1,IF(MATCH($L116,DATE(YEAR($L116),{1,3,11},{1,15,8})-WEEKDAY(DATE(YEAR($L116),{1,3,11},7)))=2,1,0),0) -> 0 | I116: 1.08708828 | J116: 18:05:24.427 | K116: 14:23:29.504 | L116: 2012-02-03 | M116: 07:12:02.604 | N116: 17:22:06.355 | O116: 33 | P116: 19:00:00 | Q116: 12.30113229 | R116: 0.9098812681 | S116: 11.39125103
C117: 02/04/2012 | D117: 06:22:36 | E117: 19:00:00 | F117: 11.37638889 | G117: 0 | H117: =IF($B$10=1,IF(MATCH($L117,DATE(YEAR($L117),{1,3,11},{1,15,8})-WEEKDAY(DATE(YEAR($L117),{1,3,11},7)))=2,1,0),0) -> 0 | I117: 1.087839479 | J117: 18:06:29.331 | K117: 14:22:36.123 | L117: 2012-02-04 | M117: 07:11:03.076 | N117: 17:23:16.918 | O117: 34 | P117: 19:00:00 | Q117: 12.26827566 | R117: 0.891852496 | S117: 11.37642317
C118: 02/05/2012 | D118: 06:21:41 | E118: 19:00:00 | F118: 11.36111111 | G118: 0 | H118: =IF($B$10=1,IF(MATCH($L118,DATE(YEAR($L118),{1,3,11},{1,15,8})-WEEKDAY(DATE(YEAR($L118),{1,3,11},7)))=2,1,0),0) -> 0 | I118: 1.088590428 | J118: 18:07:34.213 | K118: 14:21:41.138 | L118: 2012-02-05 | M118: 07:10:02.018 | N118: 17:24:27.397 | O118: 35 | P118: 19:00:00 | Q118: 12.23497922 | R118: 0.8738297261 | S118: 11.36114949
C119: 02/06/2012 | D119: 06:20:45 | E119: 19:00:00 | F119: 11.34555556 | G119: 0 | H119: =IF($B$10=1,IF(MATCH($L119,DATE(YEAR($L119),{1,3,11},{1,15,8})-WEEKDAY(DATE(YEAR($L119),{1,3,11},7)))=2,1,0),0) -> 0 | I119: 1.089340901 | J119: 18:08:39.054 | K119: 14:20:44.574 | L119: 2012-02-06 | M119: 07:08:59.463 | N119: 17:25:37.767 | O119: 36 | P119: 19:00:00 | Q119: 12.20125569 | R119: 0.8558183782 | S119: 11.34543731
C120: 02/07/2012 | D120: 06:19:46 | E120: 19:00:00 | F120: 11.32916667 | G120: 0 | H120: =IF($B$10=1,IF(MATCH($L120,DATE(YEAR($L120),{1,3,11},{1,15,8})-WEEKDAY(DATE(YEAR($L120),{1,3,11},7)))=2,1,0),0) -> 0 | I120: 1.090090688 | J120: 18:09:43.835 | K120: 14:19:46.459 | L120: 2012-02-07 | M120: 07:07:55.447 | N120: 17:26:48 | O120: 37 | P120: 19:00:00 | Q120: 12.16711757 | R120: 0.8378234843 | S120: 11.32929409
C121: 02/08/2012 | D121: 06:18:47 | E121: 19:00:00 | F121: 11.31277778 | G121: 0 | H121: =IF($B$10=1,IF(MATCH($L121,DATE(YEAR($L121),{1,3,11},{1,15,8})-WEEKDAY(DATE(YEAR($L121),{1,3,11},7)))=2,1,0),0) -> 0 | I121: 1.090839596 | J121: 18:10:48.541 | K121: 14:18:46.819 | L121: 2012-02-08 | M121: 07:06:50.003 | N121: 17:27:58.075 | O121: 38 | P121: 19:00:00 | Q121: 12.13257709 | R121: 0.8198496908 | S121: 11.3127274
C122: 02/09/2012 | D122: 06:17:46 | E122: 19:00:00 | F122: 11.29583333 | G122: 0 | H122: =IF($B$10=1,IF(MATCH($L122,DATE(YEAR($L122),{1,3,11},{1,15,8})-WEEKDAY(DATE(YEAR($L122),{1,3,11},7)))=2,1,0),0) -> 0 | I122: 1.091587447 | J122: 18:11:53.155 | K122: 14:17:45.682 | L122: 2012-02-09 | M122: 07:05:43.166 | N122: 17:29:07.970 | O122: 39 | P122: 19:00:00 | Q122: 12.09764623 | R122: 0.8019012633 | S122: 11.29574496
C123: 02/10/2012 | D123: 06:16:43 | E123: 19:00:00 | F123: 11.27833333 | G123: 0 | H123: =IF($B$10=1,IF(MATCH($L123,DATE(YEAR($L123),{1,3,11},{1,15,8})-WEEKDAY(DATE(YEAR($L123),{1,3,11},7)))=2,1,0),0) -> 0 | I123: 1.09233408 | J123: 18:12:57.664 | K123: 14:16:43.077 | L123: 2012-02-10 | M123: 07:04:34.971 | N123: 17:30:17.664 | O123: 40 | P123: 19:00:00 | Q123: 12.06233669 | R123: 0.7839820909 | S123: 11.2783546
C124: 02/11/2012 | D124: 06:15:39 | E124: 19:00:00 | F124: 11.26055556 | G124: 0 | H124: =IF($B$10=1,IF(MATCH($L124,DATE(YEAR($L124),{1,3,11},{1,15,8})-WEEKDAY(DATE(YEAR($L124),{1,3,11},7)))=2,1,0),0) -> 0 | I124: 1.093079346 | J124: 18:14:02.056 | K124: 14:15:39.031 | L124: 2012-02-11 | M124: 07:03:25.454 | N124: 17:31:27.139 | O124: 41 | P124: 19:00:00 | Q124: 12.02665995 | R124: 0.7660956923 | S124: 11.26056426
C125: 02/12/2012 | D125: 06:14:34 | E125: 19:00:00 | F125: 11.2425 | G125: 0 | H125: =IF($B$10=1,IF(MATCH($L125,DATE(YEAR($L125),{1,3,11},{1,15,8})-WEEKDAY(DATE(YEAR($L125),{1,3,11},7)))=2,1,0),0) -> 0 | I125: 1.093823116 | J125: 18:15:06.317 | K125: 14:14:33.575 | L125: 2012-02-12 | M125: 07:02:14.649 | N125: 17:32:36.377 | O125: 42 | P125: 19:00:00 | Q125: 11.99062717 | R125: 0.7482452218 | S125: 11.24238195
C126: 02/13/2012 | D126: 06:13:27 | E126: 19:00:00 | F126: 11.22388889 | G126: 0 | H126: =IF($B$10=1,IF(MATCH($L126,DATE(YEAR($L126),{1,3,11},{1,15,8})-WEEKDAY(DATE(YEAR($L126),{1,3,11},7)))=2,1,0),0) -> 0 | I126: 1.094565272 | J126: 18:16:10.439 | K126: 14:13:26.737 | L126: 2012-02-13 | M126: 07:01:02.592 | N126: 17:33:45.364 | O126: 43 | P126: 19:00:00 | Q126: 11.95424927 | R126: 0.7304334769 | S126: 11.2238158
C127: 02/14/2012 | D127: 06:12:19 | E127: 19:00:00 | F127: 11.205 | G127: 0 | H127: =IF($B$10=1,IF(MATCH($L127,DATE(YEAR($L127),{1,3,11},{1,15,8})-WEEKDAY(DATE(YEAR($L127),{1,3,11},7)))=2,1,0),0) -> 0 | I127: 1.095305712 | J127: 18:17:14.414 | K127: 14:12:18.546 | L127: 2012-02-14 | M127: 06:59:49.318 | N127: 17:34:54.084 | O127: 44 | P127: 19:00:00 | Q127: 11.91753691 | R127: 0.7126629058 | S127: 11.204874
C128: 02/15/2012 | D128: 06:11:09 | E128: 19:00:00 | F128: 11.18555556 | G128: 0 | H128: =IF($B$10=1,IF(MATCH($L128,DATE(YEAR($L128),{1,3,11},{1,15,8})-WEEKDAY(DATE(YEAR($L128),{1,3,11},7)))=2,1,0),0) -> 0 | I128: 1.096044349 | J128: 18:18:18.232 | K128: 14:11:09.033 | L128: 2012-02-15 | M128: 06:58:34.862 | N128: 17:36:02.526 | O128: 45 | P128: 19:00:00 | Q128: 11.88050044 | R128: 0.6949356159 | S128: 11.18556483
C129: 02/16/2012 | D129: 06:09:58 | E129: 19:00:00 | F129: 11.16583333 | G129: 0 | H129: =IF($B$10=1,IF(MATCH($L129,DATE(YEAR($L129),{1,3,11},{1,15,8})-WEEKDAY(DATE(YEAR($L129),{1,3,11},7)))=2,1,0),0) -> 0 | I129: 1.096781109 | J129: 18:19:21.888 | K129: 14:09:58.228 | L129: 2012-02-16 | M129: 06:57:19.259 | N129: 17:37:10.678 | O129: 46 | P129: 19:00:00 | Q129: 11.84314999 | R129: 0.6772533827 | S129: 11.1658966
C130: 02/17/2012 | D130: 06:08:46 | E130: 19:00:00 | F130: 11.14583333 | G130: 0 | H130: =IF($B$10=1,IF(MATCH($L130,DATE(YEAR($L130),{1,3,11},{1,15,8})-WEEKDAY(DATE(YEAR($L130),{1,3,11},7)))=2,1,0),0) -> 0 | I130: 1.097515931 | J130: 18:20:25.376 | K130: 14:08:46.160 | L130: 2012-02-17 | M130: 06:56:02.545 | N130: 17:38:18.529 | O130: 47 | P130: 19:00:00 | Q130: 11.80549538 | R130: 0.6596176595 | S130: 11.14587772
C131: 02/18/2012 | D131: 06:07:33 | E131: 19:00:00 | F131: 11.12555556 | G131: 0 | H131: =IF($B$10=1,IF(MATCH($L131,DATE(YEAR($L131),{1,3,11},{1,15,8})-WEEKDAY(DATE(YEAR($L131),{1,3,11},7)))=2,1,0),0) -> 0 | I131: 1.098248767 | J131: 18:21:28.693 | K131: 14:07:32.860 | L131: 2012-02-18 | M131: 06:54:44.755 | N131: 17:39:26.073 | O131: 48 | P131: 19:00:00 | Q131: 11.76754621 | R131: 0.6420295868 | S131: 11.12551662
C132: 02/19/2012 | D132: 06:06:18 | E132: 19:00:00 | F132: 11.10472222 | G132: 0 | H132: =IF($B$10=1,IF(MATCH($L132,DATE(YEAR($L132),{1,3,11},{1,15,8})-WEEKDAY(DATE(YEAR($L132),{1,3,11},7)))=2,1,0),0) -> 0 | I132: 1.098979583 | J132: 18:22:31.836 | K132: 14:06:18.358 | L132: 2012-02-19 | M132: 06:53:25.925 | N132: 17:40:33.301 | O132: 49 | P132: 19:00:00 | Q132: 11.72931178 | R132: 0.6244900033 | S132: 11.10482177
C133: 02/20/2012 | D133: 06:05:03 | E133: 19:00:00 | F133: 11.08388889 | G133: 0 | H133: =IF($B$10=1,IF(MATCH($L133,DATE(YEAR($L133),{1,3,11},{1,15,8})-WEEKDAY(DATE(YEAR($L133),{1,3,11},7)))=2,1,0),0) -> 0 | I133: 1.099708356 | J133: 18:23:34.802 | K133: 14:05:02.686 | L133: 2012-02-20 | M133: 06:52:06.088 | N133: 17:41:40.207 | O133: 50 | P133: 19:00:00 | Q133: 11.69080115 | R133: 0.6069994556 | S133: 11.0838017
C134: 02/21/2012 | D134: 06:03:46 | E134: 19:00:00 | F134: 11.0625 | G134: 0 | H134: =IF($B$10=1,IF(MATCH($L134,DATE(YEAR($L134),{1,3,11},{1,15,8})-WEEKDAY(DATE(YEAR($L134),{1,3,11},7)))=2,1,0),0) -> 0 | I134: 1.100435075 | J134: 18:24:37.590 | K134: 14:03:45.874 | L134: 2012-02-21 | M134: 06:50:45.281 | N134: 17:42:46.786 | O134: 51 | P134: 19:00:00 | Q134: 11.65202314 | R134: 0.5895582101 | S134: 11.06246493
C135: 02/22/2012 | D135: 06:02:28 | E135: 19:00:00 | F135: 11.04083333 | G135: 0 | H135: =IF($B$10=1,IF(MATCH($L135,DATE(YEAR($L135),{1,3,11},{1,15,8})-WEEKDAY(DATE(YEAR($L135),{1,3,11},7)))=2,1,0),0) -> 0 | I135: 1.101159739 | J135: 18:25:40.201 | K135: 14:02:27.952 | L135: 2012-02-22 | M135: 06:49:23.538 | N135: 17:43:53.035 | O135: 52 | P135: 19:00:00 | Q135: 11.61298632 | R135: 0.5721662635 | S135: 11.04082005
C136: 02/23/2012 | D136: 06:01:09 | E136: 19:00:00 | F136: 11.01888889 | G136: 0 | H136: =IF($B$10=1,IF(MATCH($L136,DATE(YEAR($L136),{1,3,11},{1,15,8})-WEEKDAY(DATE(YEAR($L136),{1,3,11},7)))=2,1,0),0) -> 0 | I136: 1.10188236 | J136: 18:26:42.636 | K136: 14:01:08.952 | L136: 2012-02-23 | M136: 06:48:00.894 | N136: 17:44:58.952 | O136: 53 | P136: 19:00:00 | Q136: 11.573699 | R136: 0.5548233543 | S136: 11.01887564
C137: 02/24/2012 | D137: 05:59:49 | E137: 19:00:00 | F137: 10.99666667 | G137: 0 | H137: =IF($B$10=1,IF(MATCH($L137,DATE(YEAR($L137),{1,3,11},{1,15,8})-WEEKDAY(DATE(YEAR($L137),{1,3,11},7)))=2,1,0),0) -> 0 | I137: 1.102602959 | J137: 18:27:44.896 | K137: 13:59:48.905 | L137: 2012-02-24 | M137: 06:46:37.384 | N137: 17:46:04.534 | O137: 54 | P137: 19:00:00 | Q137: 11.53416927 | R137: 0.5375289746 | S137: 10.9966403
C138: 02/25/2012 | D138: 05:58:28 | E138: 19:00:00 | F138: 10.97416667 | G138: 0 | H138: =IF($B$10=1,IF(MATCH($L138,DATE(YEAR($L138),{1,3,11},{1,15,8})-WEEKDAY(DATE(YEAR($L138),{1,3,11},7)))=2,1,0),0) -> 0 | I138: 1.103321567 | J138: 18:28:46.983 | K138: 13:58:27.841 | L138: 2012-02-25 | M138: 06:45:13.041 | N138: 17:47:09.781 | O138: 55 | P138: 19:00:00 | Q138: 11.49440501 | R138: 0.5202823815 | S138: 10.97412263
C139: 02/26/2012 | D139: 05:57:06 | E139: 19:00:00 | F139: 10.95138889 | G139: 0 | H139: =IF($B$10=1,IF(MATCH($L139,DATE(YEAR($L139),{1,3,11},{1,15,8})-WEEKDAY(DATE(YEAR($L139),{1,3,11},7)))=2,1,0),0) -> 0 | I139: 1.104038225 | J139: 18:29:48.903 | K139: 13:57:05.793 | L139: 2012-02-26 | M139: 06:43:47.901 | N139: 17:48:14.694 | O139: 56 | P139: 19:00:00 | Q139: 11.45441386 | R139: 0.5030826092 | S139: 10.95133125
C140: 02/27/2012 | D140: 05:55:43 | E140: 19:00:00 | F140: 10.92833333 | G140: 0 | H140: =IF($B$10=1,IF(MATCH($L140,DATE(YEAR($L140),{1,3,11},{1,15,8})-WEEKDAY(DATE(YEAR($L140),{1,3,11},7)))=2,1,0),0) -> 0 | I140: 1.10475298 | J140: 18:30:50.657 | K140: 13:55:42.789 | L140: 2012-02-27 | M140: 06:42:21.997 | N140: 17:49:19.273 | O140: 57 | P140: 19:00:00 | Q140: 11.41420326 | R140: 0.4859284804 | S140: 10.92827477
C141: 02/28/2012 | D141: 05:54:19 | E141: 19:00:00 | F141: 10.905 | G141: 0 | H141: =IF($B$10=1,IF(MATCH($L141,DATE(YEAR($L141),{1,3,11},{1,15,8})-WEEKDAY(DATE(YEAR($L141),{1,3,11},7)))=2,1,0),0) -> 0 | I141: 1.105465891 | J141: 18:31:52.253 | K141: 13:54:18.862 | L141: 2012-02-28 | M141: 06:40:55.364 | N141: 17:50:23.522 | O141: 58 | P141: 19:00:00 | Q141: 11.37378042 | R141: 0.4688186184 | S141: 10.9049618
C142: 02/29/2012 | D142: 05:52:54 | E142: 19:00:00 | F142: 10.88138889 | G142: 0 | H142: =IF($B$10=1,IF(MATCH($L142,DATE(YEAR($L142),{1,3,11},{1,15,8})-WEEKDAY(DATE(YEAR($L142),{1,3,11},7)))=2,1,0),0) -> 0 | I142: 1.106177023 | J142: 18:32:53.695 | K142: 13:52:54.043 | L142: 2012-02-29 | M142: 06:39:28.034 | N142: 17:51:27.444 | O142: 59 | P142: 19:00:00 | Q142: 11.3331524 | R142: 0.4517514589 | S142: 10.88140094
C143: 03/01/2012 | D143: 05:51:28 | E143: 19:00:00 | F143: 10.8575 | G143: 0 | H143: =IF($B$10=1,IF(MATCH($L143,DATE(YEAR($L143),{1,3,11},{1,15,8})-WEEKDAY(DATE(YEAR($L143),{1,3,11},7)))=2,1,0),0) -> 0 | I143: 1.106886447 | J143: 18:33:54.989 | K143: 13:51:28.363 | L143: 2012-03-01 | M143: 06:38:00.043 | N143: 17:52:31.041 | O143: 60 | P143: 19:00:00 | Q143: 11.29232604 | R143: 0.4347252619 | S143: 10.85760078
C144: 03/02/2012 | D144: 05:50:02 | E144: 19:00:00 | F144: 10.83361111 | G144: 0 | H144: =IF($B$10=1,IF(MATCH($L144,DATE(YEAR($L144),{1,3,11},{1,15,8})-WEEKDAY(DATE(YEAR($L144),{1,3,11},7)))=2,1,0),0) -> 0 | I144: 1.107594245 | J144: 18:34:56.143 | K144: 13:50:01.852 | L144: 2012-03-02 | M144: 06:36:31.422 | N144: 17:53:34.320 | O144: 61 | P144: 19:00:00 | Q144: 11.25130802 | R144: 0.4177381233 | S144: 10.8335699
C145: 03/03/2012 | D145: 05:48:35 | E145: 19:00:00 | F145: 10.80944444 | G145: 0 | H145: =IF($B$10=1,IF(MATCH($L145,DATE(YEAR($L145),{1,3,11},{1,15,8})-WEEKDAY(DATE(YEAR($L145),{1,3,11},7)))=2,1,0),0) -> 0 | I145: 1.108300501 | J145: 18:35:57.163 | K145: 13:48:34.541 | L145: 2012-03-03 | M145: 06:35:02.206 | N145: 17:54:37.285 | O145: 62 | P145: 19:00:00 | Q145: 11.21010485 | R145: 0.4007879865 | S145: 10.80931686
C146: 03/04/2012 | D146: 05:47:06 | E146: 19:00:00 | F146: 10.78472222 | G146: 0 | H146: =IF($B$10=1,IF(MATCH($L146,DATE(YEAR($L146),{1,3,11},{1,15,8})-WEEKDAY(DATE(YEAR($L146),{1,3,11},7)))=2,1,0),0) -> 0 | I146: 1.109005306 | J146: 18:36:58.058 | K146: 13:47:06.461 | L146: 2012-03-04 | M146: 06:33:32.427 | N146: 17:55:39.941 | O146: 63 | P146: 19:00:00 | Q146: 11.16872287 | R146: 0.3838726544 | S146: 10.78485022
C147: =TEXT(L147,"mm/dd/yyyy") -> 03/05/2012 | D147: =TEXT(dawn($B$4,$B$5,YEAR($C147+1),MONTH($C147+1),DAY($C147+1),$B$9,$H147,$D$6),"hh:mm:ss") -> 05:45:38 | E147: =IF(dusk($B$4,$B$5,YEAR(C147),MONTH(C147),DAY(C147),$B$9,$H147,$D$5)<$G$8,$G$8,dusk($B$4,$B$5,YEAR(C147),MONTH(C147),DAY(C147),$B$9,$H147,$D$5)) -> 19:00:00 | F147: =((TIME(23,59,59.999)-E147)+D147)*24 -> 10.76027778 | G147: 0 | H147: =IF($B$10=1,IF(MATCH($L147,DATE(YEAR($L147),{1,3,11},{1,15,8})-WEEKDAY(DATE(YEAR($L147),{1,3,11},7)))=2,1,0),0) -> 0 | I147: =dusk($B$4,$B$5,YEAR($C147),MONTH($C147),DAY($C147),0,0,$D$5) -> 1.109708758 | J147: =dusk($B$4,$B$5,YEAR($C147),MONTH($C147),DAY($C147),$B$9,$H147,$D$5) -> 18:37:58.837 | K147: 13:45:37.643 | L147: 2012-03-05 | M147: 06:32:02.118 | N147: 17:56:42.296 | O147: 64 | P147: 19:00:00 | Q147: 11.12716829 | R147: 0.3669898004 | S147: 10.76017849
C148: 03/06/2012 | D148: 05:44:08 | E148: 19:00:00 | F148: 10.73527778 | G148: =HOUR(E148-$C$77)*3600+MINUTE(E148-$C$77)*60+SECOND(E148-$C$77) -> 0 | H148: =IF($B$10=1,IF(MATCH($L148,DATE(YEAR($L148),{1,3,11},{1,15,8})-WEEKDAY(DATE(YEAR($L148),{1,3,11},7)))=2,1,0),0) -> 0 | I148: 1.110410959 | J148: 18:38:59.507 | K148: =dawn($B$4,$B$5,YEAR($C148+1),MONTH($C148+1),DAY($C148+1),0,0,$D$6) -> 13:44:08.117 | L148: 2012-03-06 | M148: =dawn($B$4,$B$5,YEAR($C148+1),MONTH($C148+1),DAY($C148+1),$B$9,$H148,0) -> 06:30:31.311 | N148: =dusk($B$4,$B$5,YEAR(C148),MONTH(C148),DAY(C148),$B$9,$H148,0) -> 17:57:44.357 | O148: 65 | P148: =MIN(dusk($B$4,$B$5,YEAR(C148),MONTH(C148),DAY(C148),0,0,$D$5),E148) -> 19:00:00 | Q148: =IF(I148>K148,((TIME(23,59,59.999)-I148)+K148)*24,(K148-I148)*24) -> 11.08544716 | R148: =(E148-J148)*24 -> 0.35013698 | S148: =(Q148-R148) -> 10.73531018
C149: 03/07/2012 | D149: 05:42:38 | E149: 19:00:00 | F149: 10.71027778 | G149: 0 | H149: =IF($B$10=1,IF(MATCH($L149,DATE(YEAR($L149),{1,3,11},{1,15,8})-WEEKDAY(DATE(YEAR($L149),{1,3,11},7)))=2,1,0),0) -> 0 | I149: 1.111112015 | J149: 18:40:00.078 | K149: 13:42:37.914 | L149: =L148+1 -> 2012-03-07 | M149: 06:29:00.040 | N149: 17:58:46.131 | O149: =O148+1 -> 66 | P149: 19:00:00 | Q149: 11.04356544 | R149: 0.3333116418 | S149: 10.7102538
C150: 03/08/2012 | D150: 05:41:07 | E150: 19:00:00 | F150: 10.685 | G150: 0 | H150: =IF($B$10=1,IF(MATCH($L150,DATE(YEAR($L150),{1,3,11},{1,15,8})-WEEKDAY(DATE(YEAR($L150),{1,3,11},7)))=2,1,0),0) -> 0 | I150: 1.111812036 | J150: 18:41:00.560 | K150: 13:41:07.064 | L150: 2012-03-08 | M150: 06:27:28.335 | N150: 17:59:47.627 | O150: 67 | P150: 19:00:00 | Q150: 11.00152893 | R150: 0.3165111386 | S150: 10.68501779
C151: 03/09/2012 | D151: 05:39:36 | E151: 19:00:00 | F151: 10.65972222 | G151: 0 | H151: =IF($B$10=1,IF(MATCH($L151,DATE(YEAR($L151),{1,3,11},{1,15,8})-WEEKDAY(DATE(YEAR($L151),{1,3,11},7)))=2,1,0),0) -> 0 | I151: 1.112511136 | J151: 18:42:00.962 | K151: 13:39:35.598 | L151: 2012-03-09 | M151: 06:25:56.230 | N151: 18:00:48.852 | O151: 68 | P151: 19:00:00 | Q151: 10.95934335 | R151: 0.2997327388 | S151: 10.65961061
C152: 03/10/2012 | D152: 05:38:04 | E152: 19:00:00 | F152: 10.63416667 | G152: 0 | H152: =IF($B$10=1,IF(MATCH($L152,DATE(YEAR($L152),{1,3,11},{1,15,8})-WEEKDAY(DATE(YEAR($L152),{1,3,11},7)))=2,1,0),0) -> 0 | I152: 1.113209432 | J152: 18:43:01.295 | K152: 13:38:03.546 | L152: 2012-03-10 | M152: 06:24:23.755 | N152: 18:01:49.815 | O152: 69 | P152: 19:00:00 | Q152: 10.91701432 | R152: 0.282973636 | S152: 10.63404068
C153: 03/11/2012 | D153: 06:36:31 | E153: 19:44:01.569 | F153: 10.87456429 | G153: 2642 | H153: =IF($B$10=1,IF(MATCH($L153,DATE(YEAR($L153),{1,3,11},{1,15,8})-WEEKDAY(DATE(YEAR($L153),{1,3,11},7)))=2,1,0),0) -> 1 | I153: 1.113907043 | J153: 19:44:01.569 | K153: 13:36:30.939 | L153: 2012-03-11 | M153: 07:22:50.942 | N153: 19:02:50.527 | O153: 70 | P153: 19:44:01.569 | Q153: 10.87454737 | R153: 0 | S153: 10.87454737
C154: 03/12/2012 | D154: 06:34:58 | E154: 19:45:01.794 | F154: 10.83200179 | G154: 2702 | H154: =IF($B$10=1,IF(MATCH($L154,DATE(YEAR($L154),{1,3,11},{1,15,8})-WEEKDAY(DATE(YEAR($L154),{1,3,11},7)))=2,1,0),0) -> 1 | I154: 1.114604092 | J154: 19:45:01.794 | K154: 13:34:57.806 | L154: 2012-03-12 | M154: 07:21:17.823 | N154: 19:03:50.995 | O154: 71 | P154: 19:45:01.794 | Q154: 10.83194796 | R154: 0 | S154: 10.83194796
C155: 03/13/2012 | D155: 06:33:24 | E155: 19:46:01.981 | F155: 10.78917205 | G155: 2762 | H155: =IF($B$10=1,IF(MATCH($L155,DATE(YEAR($L155),{1,3,11},{1,15,8})-WEEKDAY(DATE(YEAR($L155),{1,3,11},7)))=2,1,0),0) -> 1 | I155: 1.115300702 | J155: 19:46:01.981 | K155: 13:33:24.178 | L155: 2012-03-13 | M155: 07:19:44.429 | N155: 19:04:51.231 | O155: 72 | P155: 19:46:01.981 | Q155: 10.78922149 | R155: 0 | S155: 10.78922149
C156: 03/14/2012 | D156: 06:31:50 | E156: 19:47:02.141 | F156: 10.74634985 | G156: 2822 | H156: =IF($B$10=1,IF(MATCH($L156,DATE(YEAR($L156),{1,3,11},{1,15,8})-WEEKDAY(DATE(YEAR($L156),{1,3,11},7)))=2,1,0),0) -> 1 | I156: 1.115996997 | J156: 19:47:02.141 | K156: 13:31:50.084 | L156: 2012-03-14 | M156: 07:18:10.791 | N156: 19:05:51.243 | O156: 73 | P156: 19:47:02.141 | Q156: 10.7463733 | R156: 0 | S156: 10.7463733
C157: 03/15/2012 | D157: 06:30:16 | E157: 19:48:02.284 | F157: 10.70353216 | G157: 2882 | H157: =IF($B$10=1,IF(MATCH($L157,DATE(YEAR($L157),{1,3,11},{1,15,8})-WEEKDAY(DATE(YEAR($L157),{1,3,11},7)))=2,1,0),0) -> 1 | I157: 1.116693104 | J157: 19:48:02.284 | K157: 13:30:15.556 | L157: 2012-03-15 | M157: 07:16:36.939 | N157: 19:06:51.042 | O157: 74 | P157: 19:48:02.284 | Q157: 10.7034087 | R157: 0 | S157: 10.7034087
C158: 03/16/2012 | D158: 06:28:41 | E158: 19:49:02.423 | F158: 10.66043819 | G158: 2942 | H158: =IF($B$10=1,IF(MATCH($L158,DATE(YEAR($L158),{1,3,11},{1,15,8})-WEEKDAY(DATE(YEAR($L158),{1,3,11},7)))=2,1,0),0) -> 1 | I158: 1.11738915 | J158: 19:49:02.423 | K158: 13:28:40.621 | L158: 2012-03-16 | M158: 07:15:02.905 | N158: 19:07:50.639 | O158: 75 | P158: 19:49:02.423 | Q158: 10.66033297 | R158: 0 | S158: 10.66033297
C159: 03/17/2012 | D159: 06:27:05 | E159: 19:50:02.566 | F159: 10.61706488 | G159: 3003 | H159: =IF($B$10=1,IF(MATCH($L159,DATE(YEAR($L159),{1,3,11},{1,15,8})-WEEKDAY(DATE(YEAR($L159),{1,3,11},7)))=2,1,0),0) -> 1 | I159: 1.11808526 | J159: 19:50:02.566 | K159: 13:27:05.311 | L159: 2012-03-17 | M159: 07:13:28.718 | N159: 19:08:50.043 | O159: 76 | P159: 19:50:02.566 | Q159: 10.61715136 | R159: 0 | S159: 10.61715136
C160: 03/18/2012 | D160: 06:25:30 | E160: 19:51:02.727 | F160: 10.57396476 | G160: 3063 | H160: =IF($B$10=1,IF(MATCH($L160,DATE(YEAR($L160),{1,3,11},{1,15,8})-WEEKDAY(DATE(YEAR($L160),{1,3,11},7)))=2,1,0),0) -> 1 | I160: 1.118781561 | J160: 19:51:02.727 | K160: 13:25:29.656 | L160: 2012-03-18 | M160: 07:11:54.410 | N160: 19:09:49.265 | O160: 77 | P160: 19:51:02.727 | Q160: 10.57386913 | R160: 0 | S160: 10.57386913
C161: 03/19/2012 | D161: 06:23:54 | E161: 19:52:02.915 | F161: 10.53057926 | G161: 3123 | H161: =IF($B$10=1,IF(MATCH($L161,DATE(YEAR($L161),{1,3,11},{1,15,8})-WEEKDAY(DATE(YEAR($L161),{1,3,11},7)))=2,1,0),0) -> 1 | I161: 1.119478179 | J161: 19:52:02.915 | K161: 13:23:53.684 | L161: 2012-03-19 | M161: 07:10:20.010 | N161: 19:10:48.317 | O161: 78 | P161: 19:52:02.915 | Q161: 10.53049155 | R161: 0 | S161: 10.53049155
C162: 03/20/2012 | D162: 06:22:17 | E162: 19:53:03.141 | F162: 10.48690539 | G162: 3183 | H162: =IF($B$10=1,IF(MATCH($L162,DATE(YEAR($L162),{1,3,11},{1,15,8})-WEEKDAY(DATE(YEAR($L162),{1,3,11},7)))=2,1,0),0) -> 1 | I162: 1.120175238 | J162: 19:53:03.141 | K162: 13:22:17.427 | L162: 2012-03-20 | M162: 07:08:45.549 | N162: 19:11:47.207 | O162: 79 | P162: 19:53:03.141 | Q162: 10.4870239 | R162: 0 | S162: 10.4870239
C163: 03/21/2012 | D163: 06:20:41 | E163: 19:54:03.415 | F163: 10.44349574 | G163: 3243 | H163: =IF($B$10=1,IF(MATCH($L163,DATE(YEAR($L163),{1,3,11},{1,15,8})-WEEKDAY(DATE(YEAR($L163),{1,3,11},7)))=2,1,0),0) -> 1 | I163: 1.120872863 | J163: 19:54:03.415 | K163: 13:20:40.913 | L163: 2012-03-21 | M163: 07:07:11.056 | N163: 19:12:45.947 | O163: 80 | P163: 19:54:03.415 | Q163: 10.44347148 | R163: 0 | S163: 10.44347148
C164: 03/22/2012 | D164: 06:19:04 | E164: 19:55:03.749 | F164: 10.39979184 | G164: 3304 | H164: =IF($B$10=1,IF(MATCH($L164,DATE(YEAR($L164),{1,3,11},{1,15,8})-WEEKDAY(DATE(YEAR($L164),{1,3,11},7)))=2,1,0),0) -> 1 | I164: 1.121571173 | J164: 19:55:03.749 | K164: 13:19:04.172 | L164: 2012-03-22 | M164: 07:05:36.562 | N164: 19:13:44.547 | O164: 81 | P164: 19:55:03.749 | Q164: 10.39983966 | R164: 0 | S164: 10.39983966
C165: 03/23/2012 | D165: 06:17:27 | E165: 19:56:04.153 | F165: 10.35606861 | G165: 3364 | H165: =IF($B$10=1,IF(MATCH($L165,DATE(YEAR($L165),{1,3,11},{1,15,8})-WEEKDAY(DATE(YEAR($L165),{1,3,11},7)))=2,1,0),0) -> 1 | I165: 1.12227029 | J165: 19:56:04.153 | K165: 13:17:27.235 | L165: 2012-03-23 | M165: 07:04:02.096 | N165: 19:14:43.017 | O165: 82 | P165: 19:56:04.153 | Q165: 10.35613383 | R165: 0 | S165: 10.35613383
C166: 03/24/2012 | D166: 06:15:50 | E166: 19:57:04.636 | F166: 10.31232323 | G166: 3425 | H166: =IF($B$10=1,IF(MATCH($L166,DATE(YEAR($L166),{1,3,11},{1,15,8})-WEEKDAY(DATE(YEAR($L166),{1,3,11},7)))=2,1,0),0) -> 1 | I166: 1.122970328 | J166: 19:57:04.636 | K166: 13:15:50.130 | L166: 2012-03-24 | M166: 07:02:27.687 | N166: 19:15:41.368 | O166: 83 | P166: 19:57:04.636 | Q166: 10.31235947 | R166: 0 | S166: 10.31235947
C167: 03/25/2012 | D167: 06:14:13 | E167: 19:58:05.209 | F167: 10.26855298 | G167: 3485 | H167: =IF($B$10=1,IF(MATCH($L167,DATE(YEAR($L167),{1,3,11},{1,15,8})-WEEKDAY(DATE(YEAR($L167),{1,3,11},7)))=2,1,0),0) -> 1 | I167: 1.123671404 | J167: 19:58:05.209 | K167: 13:14:12.889 | L167: 2012-03-25 | M167: 07:00:53.367 | N167: 19:16:39.610 | O167: 84 | P167: 19:58:05.209 | Q167: 10.26852214 | R167: 0 | S167: 10.26852214
C168: 03/26/2012 | D168: 06:12:36 | E168: 19:59:05.881 | F168: 10.2247552 | G168: 3546 | H168: =IF($B$10=1,IF(MATCH($L168,DATE(YEAR($L168),{1,3,11},{1,15,8})-WEEKDAY(DATE(YEAR($L168),{1,3,11},7)))=2,1,0),0) -> 1 | I168: 1.124373626 | J168: 19:59:05.881 | K168: 13:12:35.540 | L168: 2012-03-26 | M168: 06:59:19.163 | N168: 19:17:37.752 | O168: 85 | P168: 19:59:05.881 | Q168: 10.22462748 | R168: 0 | S168: 10.22462748
C169: 03/27/2012 | D169: 06:10:58 | E169: 20:00:06.662 | F169: 10.18064954 | G169: 3607 | H169: =IF($B$10=1,IF(MATCH($L169,DATE(YEAR($L169),{1,3,11},{1,15,8})-WEEKDAY(DATE(YEAR($L169),{1,3,11},7)))=2,1,0),0) -> 1 | I169: 1.125077102 | J169: 20:00:06.662 | K169: 13:10:58.114 | L169: 2012-03-27 | M169: 06:57:45.106 | N169: 19:18:35.805 | O169: 86 | P169: 20:00:06.662 | Q169: 10.18068124 | R169: 0 | S169: 10.18068124
C170: 03/28/2012 | D170: 06:09:21 | E170: 20:01:07.559 | F170: 10.13678909 | G170: 3668 | H170: =IF($B$10=1,IF(MATCH($L170,DATE(YEAR($L170),{1,3,11},{1,15,8})-WEEKDAY(DATE(YEAR($L170),{1,3,11},7)))=2,1,0),0) -> 1 | I170: 1.125781936 | J170: 20:01:07.559 | K170: 13:09:20.641 | L170: 2012-03-28 | M170: 06:56:11.225 | N170: 19:19:33.777 | O170: 87 | P170: 20:01:07.559 | Q170: 10.13668928 | R170: 0 | S170: 10.13668928
C171: 03/29/2012 | D171: 06:07:43 | E171: 20:02:08.583 | F171: 10.09261592 | G171: 3729 | H171: =IF($B$10=1,IF(MATCH($L171,DATE(YEAR($L171),{1,3,11},{1,15,8})-WEEKDAY(DATE(YEAR($L171),{1,3,11},7)))=2,1,0),0) -> 1 | I171: 1.126488226 | J171: 20:02:08.583 | K171: 13:07:43.150 | L171: 2012-03-29 | M171: 06:54:37.549 | N171: 19:20:31.679 | O171: 88 | P171: 20:02:08.583 | Q171: 10.09265759 | R171: 0 | S171: 10.09265759
C172: 03/30/2012 | D172: 06:06:06 | E172: 20:03:09.740 | F172: 10.04868332 | G172: 3790 | H172: =IF($B$10=1,IF(MATCH($L172,DATE(YEAR($L172),{1,3,11},{1,15,8})-WEEKDAY(DATE(YEAR($L172),{1,3,11},7)))=2,1,0),0) -> 1 | I172: 1.127196065 | J172: 20:03:09.740 | K172: 13:06:05.672 | L172: 2012-03-30 | M172: 06:53:04.109 | N172: 19:21:29.518 | O172: 89 | P172: 20:03:09.740 | Q172: 10.04859231 | R172: 0 | S172: 10.04859231
C173: 03/31/2012 | D173: 06:04:28 | E173: 20:04:11.039 | F173: 10.00443362 | G173: 3851 | H173: =IF($B$10=1,IF(MATCH($L173,DATE(YEAR($L173),{1,3,11},{1,15,8})-WEEKDAY(DATE(YEAR($L173),{1,3,11},7)))=2,1,0),0) -> 1 | I173: 1.127905544 | J173: 20:04:11.039 | K173: 13:04:28.238 | L173: 2012-03-31 | M173: 06:51:30.932 | N173: 19:22:27.303 | O173: 90 | P173: 20:04:11.039 | Q173: 10.00449971 | R173: 0 | S173: 10.00449971
C174: 04/01/2012 | D174: 06:02:51 | E174: 20:05:12.487 | F174: 9.960420366 | G174: 3912 | H174: =IF($B$10=1,IF(MATCH($L174,DATE(YEAR($L174),{1,3,11},{1,15,8})-WEEKDAY(DATE(YEAR($L174),{1,3,11},7)))=2,1,0),0) -> 1 | I174: 1.128616744 | J174: 20:05:12.487 | K174: 13:02:50.877 | L174: 2012-04-01 | M174: 06:49:58.049 | N174: 19:23:25.043 | O174: 91 | P174: 20:05:12.487 | Q174: 9.960386259 | R174: 0 | S174: 9.960386259
C175: 04/02/2012 | D175: 06:01:14 | E175: 20:06:14.090 | F175: 9.916363915 | G175: 3974 | H175: =IF($B$10=1,IF(MATCH($L175,DATE(YEAR($L175),{1,3,11},{1,15,8})-WEEKDAY(DATE(YEAR($L175),{1,3,11},7)))=2,1,0),0) -> 1 | I175: 1.129329744 | J175: 20:06:14.090 | K175: 13:01:13.621 | L175: 2012-04-02 | M175: 06:48:25.489 | N175: 19:24:22.745 | O175: 92 | P175: 20:06:14.090 | Q175: 9.916258572 | R175: 0 | S175: 9.916258572
C176: 04/03/2012 | D176: 05:59:36 | E176: 20:07:15.855 | F176: 9.871984779 | G176: 4036 | H176: =IF($B$10=1,IF(MATCH($L176,DATE(YEAR($L176),{1,3,11},{1,15,8})-WEEKDAY(DATE(YEAR($L176),{1,3,11},7)))=2,1,0),0) -> 1 | I176: 1.130044616 | J176: 20:07:15.855 | K176: 12:59:36.499 | L176: 2012-04-03 | M176: 06:46:53.281 | N176: 19:25:20.416 | O176: 93 | P176: 20:07:15.855 | Q176: 9.872123471 | R176: 0 | S176: 9.872123471
C177: 04/04/2012 | D177: 05:58:00 | E177: 20:08:17.787 | F177: 9.828114736 | G177: 4098 | H177: =IF($B$10=1,IF(MATCH($L177,DATE(YEAR($L177),{1,3,11},{1,15,8})-WEEKDAY(DATE(YEAR($L177),{1,3,11},7)))=2,1,0),0) -> 1 | I177: 1.130761423 | J177: 20:08:17.787 | K177: 12:57:59.544 | L177: 2012-04-04 | M177: 06:45:21.456 | N177: 19:26:18.065 | O177: 94 | P177: 20:08:17.787 | Q177: 9.827987978 | R177: 0 | S177: 9.827987978
C178: 04/05/2012 | D178: 05:56:23 | E178: 20:09:19.891 | F178: 9.783919065 | G178: 4160 | H178: =IF($B$10=1,IF(MATCH($L178,DATE(YEAR($L178),{1,3,11},{1,15,8})-WEEKDAY(DATE(YEAR($L178),{1,3,11},7)))=2,1,0),0) -> 1 | I178: 1.131480224 | J178: 20:09:19.891 | K178: 12:56:22.785 | L178: 2012-04-05 | M178: 06:43:50.041 | N178: 19:27:15.696 | O178: 95 | P178: 20:09:19.891 | Q178: 9.78385933 | R178: 0 | S178: 9.78385933
C179: 04/06/2012 | D179: 05:54:46 | E179: 20:10:22.172 | F179: 9.73967433 | G179: 4222 | H179: =IF($B$10=1,IF(MATCH($L179,DATE(YEAR($L179),{1,3,11},{1,15,8})-WEEKDAY(DATE(YEAR($L179),{1,3,11},7)))=2,1,0),0) -> 1 | I179: 1.13220107 | J179: 20:10:22.172 | K179: 12:54:46.254 | L179: 2012-04-06 | M179: 06:42:19.067 | N179: 19:28:13.316 | O179: 96 | P179: 20:10:22.172 | Q179: 9.739744993 | R179: 0 | S179: 9.739744993
C180: 04/07/2012 | D180: 05:53:10 | E180: 20:11:24.634 | F180: 9.695657285 | G180: 4285 | H180: =IF($B$10=1,IF(MATCH($L180,DATE(YEAR($L180),{1,3,11},{1,15,8})-WEEKDAY(DATE(YEAR($L180),{1,3,11},7)))=2,1,0),0) -> 1 | I180: 1.132924002 | J180: 20:11:24.634 | K180: 12:53:09.983 | L180: 2012-04-07 | M180: 06:40:48.563 | N180: 19:29:10.930 | O180: 97 | P180: 20:11:24.634 | Q180: 9.695652671 | R180: 0 | S180: 9.695652671
C181: 04/08/2012 | D181: 05:51:34 | E181: 20:12:27.278 | F181: 9.651589318 | G181: 4347 | H181: =IF($B$10=1,IF(MATCH($L181,DATE(YEAR($L181),{1,3,11},{1,15,8})-WEEKDAY(DATE(YEAR($L181),{1,3,11},7)))=2,1,0),0) -> 1 | I181: 1.133649056 | J181: 20:12:27.278 | K181: 12:51:34.004 | L181: 2012-04-08 | M181: 06:39:18.559 | N181: 19:30:08.544 | O181: 98 | P181: 20:12:27.278 | Q181: 9.651590322 | R181: 0 | S181: 9.651590322
C182: 04/09/2012 | D182: 05:49:58 | E182: 20:13:30.109 | F182: 9.607469802 | G182: 4410 | H182: =IF($B$10=1,IF(MATCH($L182,DATE(YEAR($L182),{1,3,11},{1,15,8})-WEEKDAY(DATE(YEAR($L182),{1,3,11},7)))=2,1,0),0) -> 1 | I182: 1.134376258 | J182: 20:13:30.109 | K182: 12:49:58.347 | L182: 2012-04-09 | M182: 06:37:49.084 | N182: 19:31:06.161 | O182: 99 | P182: 20:13:30.109 | Q182: 9.60756617 | R182: 0 | S182: 9.60756617
C183: 04/10/2012 | D183: 05:48:23 | E183: 20:14:33.126 | F183: 9.563576099 | G183: 4473 | H183: =IF($B$10=1,IF(MATCH($L183,DATE(YEAR($L183),{1,3,11},{1,15,8})-WEEKDAY(DATE(YEAR($L183),{1,3,11},7)))=2,1,0),0) -> 1 | I183: 1.135105626 | J183: 20:14:33.126 | K183: 12:48:23.045 | L183: 2012-04-10 | M183: 06:36:20.169 | N183: 19:32:03.785 | O183: 100 | P183: 20:14:33.126 | Q183: 9.563588715 | R183: 0 | S183: 9.563588715
C184: 04/11/2012 | D184: 05:46:48 | E184: 20:15:36.331 | F184: 9.51963024 | G184: 4536 | H184: =IF($B$10=1,IF(MATCH($L184,DATE(YEAR($L184),{1,3,11},{1,15,8})-WEEKDAY(DATE(YEAR($L184),{1,3,11},7)))=2,1,0),0) -> 1 | I184: 1.135837166 | J184: 20:15:36.331 | K184: 12:46:48.131 | L184: 2012-04-11 | M184: 06:34:51.842 | N184: 19:33:01.420 | O184: 101 | P184: 20:15:36.331 | Q184: 9.519666745 | R184: 0 | S184: 9.519666745
C185: 04/12/2012 | D185: 05:45:14 | E185: 20:16:39.724 | F185: 9.475910042 | G185: 4600 | H185: =IF($B$10=1,IF(MATCH($L185,DATE(YEAR($L185),{1,3,11},{1,15,8})-WEEKDAY(DATE(YEAR($L185),{1,3,11},7)))=2,1,0),0) -> 1 | I185: 1.136570878 | J185: 20:16:39.724 | K185: 12:45:13.638 | L185: 2012-04-12 | M185: 06:33:24.133 | N185: 19:33:59.066 | O185: 102 | P185: 20:16:39.724 | Q185: 9.47580935 | R185: 0 | S185: 9.47580935
C186: 04/13/2012 | D186: 05:43:40 | E186: 20:17:43.303 | F186: 9.43213801 | G186: 4663 | H186: =IF($B$10=1,IF(MATCH($L186,DATE(YEAR($L186),{1,3,11},{1,15,8})-WEEKDAY(DATE(YEAR($L186),{1,3,11},7)))=2,1,0),0) -> 1 | I186: 1.13730675 | J186: 20:17:43.303 | K186: 12:43:39.597 | L186: 2012-04-13 | M186: 06:31:57.073 | N186: 19:34:56.728 | O186: 103 | P186: 20:17:43.303 | Q186: 9.432025932 | R186: 0 | S186: 9.432025932
C187: 04/14/2012 | D187: 05:42:06 | E187: 20:18:47.067 | F187: 9.388314676 | G187: 4727 | H187: =IF($B$10=1,IF(MATCH($L187,DATE(YEAR($L187),{1,3,11},{1,15,8})-WEEKDAY(DATE(YEAR($L187),{1,3,11},7)))=2,1,0),0) -> 1 | I187: 1.138044759 | J187: 20:18:47.067 | K187: 12:42:06.042 | L187: 2012-04-14 | M187: 06:30:30.691 | N187: 19:35:54.404 | O187: 104 | P187: 20:18:47.067 | Q187: 9.388326217 | R187: 0 | S187: 9.388326217
C188: 04/15/2012 | D188: 05:40:33 | E188: 20:19:51.013 | F188: 9.344718611 | G188: 4791 | H188: =IF($B$10=1,IF(MATCH($L188,DATE(YEAR($L188),{1,3,11},{1,15,8})-WEEKDAY(DATE(YEAR($L188),{1,3,11},7)))=2,1,0),0) -> 1 | I188: 1.138784873 | J188: 20:19:51.013 | K188: 12:40:33.006 | L188: 2012-04-15 | M188: 06:29:05.017 | N188: 19:36:52.095 | O188: 105 | P188: 20:19:51.013 | Q188: 9.344720266 | R188: 0 | S188: 9.344720266
C189: 04/16/2012 | D189: 05:39:01 | E189: 20:20:55.137 | F189: 9.301350878 | G189: 4855 | H189: =IF($B$10=1,IF(MATCH($L189,DATE(YEAR($L189),{1,3,11},{1,15,8})-WEEKDAY(DATE(YEAR($L189),{1,3,11},7)))=2,1,0),0) -> 1 | I189: 1.139527047 | J189: 20:20:55.137 | K189: 12:39:00.523 | L189: 2012-04-16 | M189: 06:27:40.082 | N189: 19:37:49.802 | O189: 106 | P189: 20:20:55.137 | Q189: 9.301218486 | R189: 0 | S189: 9.301218486
C190: 04/17/2012 | D190: 05:37:29 | E190: 20:21:59.434 | F190: 9.257935043 | G190: 4919 | H190: =IF($B$10=1,IF(MATCH($L190,DATE(YEAR($L190),{1,3,11},{1,15,8})-WEEKDAY(DATE(YEAR($L190),{1,3,11},7)))=2,1,0),0) -> 1 | I190: 1.140271225 | J190: 20:21:59.434 | K190: 12:37:28.628 | L190: 2012-04-17 | M190: 06:26:15.914 | N190: 19:38:47.521 | O190: 107 | P190: 20:21:59.434 | Q190: 9.25783164 | R190: 0 | S190: 9.25783164
C191: 04/18/2012 | D191: 05:35:57 | E191: 20:23:03.898 | F191: 9.214472737 | G191: 4984 | H191: =IF($B$10=1,IF(MATCH($L191,DATE(YEAR($L191),{1,3,11},{1,15,8})-WEEKDAY(DATE(YEAR($L191),{1,3,11},7)))=2,1,0),0) -> 1 | I191: 1.14101734 | J191: 20:23:03.898 | K191: 12:35:57.353 | L191: 2012-04-18 | M191: 06:24:52.545 | N191: 19:39:45.251 | O191: 108 | P191: 20:23:03.898 | Q191: 9.214570856 | R191: 0 | S191: 9.214570856
C192: 04/19/2012 | D192: 05:34:27 | E192: 20:24:08.523 | F192: 9.171521445 | G192: 5049 | H192: =IF($B$10=1,IF(MATCH($L192,DATE(YEAR($L192),{1,3,11},{1,15,8})-WEEKDAY(DATE(YEAR($L192),{1,3,11},7)))=2,1,0),0) -> 1 | I192: 1.14176531 | J192: 20:24:08.523 | K192: 12:34:26.734 | L192: 2012-04-19 | M192: 06:23:30.004 | N192: 19:40:42.990 | O192: 109 | P192: 20:24:08.523 | Q192: 9.17144764 | R192: 0 | S192: 9.17144764
C193: 04/20/2012 | D193: 05:32:57 | E193: 20:25:13.300 | F193: 9.128527847 | G193: 5113 | H193: =IF($B$10=1,IF(MATCH($L193,DATE(YEAR($L193),{1,3,11},{1,15,8})-WEEKDAY(DATE(YEAR($L193),{1,3,11},7)))=2,1,0),0) -> 1 | I193: 1.142515043 | J193: 20:25:13.300 | K193: 12:32:56.806 | L193: 2012-04-20 | M193: 06:22:08.322 | N193: 19:41:40.732 | O193: 110 | P193: 20:25:13.300 | Q193: 9.128473882 | R193: 0 | S193: 9.128473882
C194: 04/21/2012 | D194: 05:31:28 | E194: 20:26:18.220 | F194: 9.085772274 | G194: 5178 | H194: =IF($B$10=1,IF(MATCH($L194,DATE(YEAR($L194),{1,3,11},{1,15,8})-WEEKDAY(DATE(YEAR($L194),{1,3,11},7)))=2,1,0),0) -> 1 | I194: 1.143266433 | J194: 20:26:18.220 | K194: 12:31:27.603 | L194: 2012-04-21 | M194: 06:20:47.528 | N194: 19:42:38.473 | O194: 111 | P194: 20:26:18.220 | Q194: 9.085661866 | R194: 0 | S194: 9.085661866
C195: 04/22/2012 | D195: 05:29:59 | E195: 20:27:23.273 | F195: 9.042979824 | G195: 5243 | H195: =IF($B$10=1,IF(MATCH($L195,DATE(YEAR($L195),{1,3,11},{1,15,8})-WEEKDAY(DATE(YEAR($L195),{1,3,11},7)))=2,1,0),0) -> 1 | I195: 1.144019359 | J195: 20:27:23.273 | K195: 12:29:59.160 | L195: 2012-04-22 | M195: 06:19:27.654 | N195: 19:43:36.207 | O195: 112 | P195: 20:27:23.273 | Q195: 9.043024277 | R195: 0 | S195: 9.043024277
C196: 04/23/2012 | D196: 05:28:32 | E196: 20:28:28.447 | F196: 9.000709263 | G196: 5308 | H196: =IF($B$10=1,IF(MATCH($L196,DATE(YEAR($L196),{1,3,11},{1,15,8})-WEEKDAY(DATE(YEAR($L196),{1,3,11},7)))=2,1,0),0) -> 1 | I196: 1.144773688 | J196: 20:28:28.447 | K196: 12:28:31.514 | L196: 2012-04-23 | M196: 06:18:08.728 | N196: 19:44:33.927 | O196: 113 | P196: 20:28:28.447 | Q196: 9.00057421 | R196: 0 | S196: 9.00057421
C197: 04/24/2012 | D197: 05:27:05 | E197: 20:29:33.729 | F197: 8.958408585 | G197: 5374 | H197: =IF($B$10=1,IF(MATCH($L197,DATE(YEAR($L197),{1,3,11},{1,15,8})-WEEKDAY(DATE(YEAR($L197),{1,3,11},7)))=2,1,0),0) -> 1 | I197: 1.145529272 | J197: 20:29:33.729 | K197: 12:27:04.700 | L197: 2012-04-24 | M197: 06:16:50.782 | N197: 19:45:31.626 | O197: 114 | P197: 20:29:33.729 | Q197: 8.958325176 | R197: 0 | S197: 8.958325176
C198: 04/25/2012 | D198: 05:25:39 | E198: 20:30:39.106 | F198: 8.916359467 | G198: 5439 | H198: =IF($B$10=1,IF(MATCH($L198,DATE(YEAR($L198),{1,3,11},{1,15,8})-WEEKDAY(DATE(YEAR($L198),{1,3,11},7)))=2,1,0),0) -> 1 | I198: 1.146285948 | J198: 20:30:39.106 | K198: 12:25:38.754 | L198: 2012-04-25 | M198: 06:15:33.844 | N198: 19:46:29.294 | O198: 115 | P198: 20:30:39.106 | Q198: 8.916291106 | R198: 0 | S198: 8.916291106
C199: 04/26/2012 | D199: 05:24:14 | E199: 20:31:44.562 | F199: 8.874566164 | G199: 5505 | H199: =IF($B$10=1,IF(MATCH($L199,DATE(YEAR($L199),{1,3,11},{1,15,8})-WEEKDAY(DATE(YEAR($L199),{1,3,11},7)))=2,1,0),0) -> 1 | I199: 1.147043539 | J199: 20:31:44.562 | K199: 12:24:13.713 | L199: 2012-04-26 | M199: 06:14:17.947 | N199: 19:47:26.922 | O199: 116 | P199: 20:31:44.562 | Q199: 8.874486358 | R199: 0 | S199: 8.874486358
C200: 04/27/2012 | D200: 05:22:50 | E200: 20:32:50.080 | F200: 8.833033295 | G200: 5570 | H200: =IF($B$10=1,IF(MATCH($L200,DATE(YEAR($L200),{1,3,11},{1,15,8})-WEEKDAY(DATE(YEAR($L200),{1,3,11},7)))=2,1,0),0) -> 1 | I200: 1.147801853 | J200: 20:32:50.080 | K200: 12:22:49.613 | L200: 2012-04-27 | M200: 06:13:03.118 | N200: 19:48:24.499 | O200: 117 | P200: 20:32:50.080 | Q200: 8.83292572 | R200: 0 | S200: 8.83292572
C201: 04/28/2012 | D201: 05:21:26 | E201: 20:33:55.643 | F201: 8.791488068 | G201: 5636 | H201: =IF($B$10=1,IF(MATCH($L201,DATE(YEAR($L201),{1,3,11},{1,15,8})-WEEKDAY(DATE(YEAR($L201),{1,3,11},7)))=2,1,0),0) -> 1 | I201: 1.148560682 | J201: 20:33:55.643 | K201: 12:21:26.491 | L201: 2012-04-28 | M201: 06:11:49.389 | N201: 19:49:22.013 | O201: 118 | P201: 20:33:55.643 | Q201: 8.791624415 | R201: 0 | S201: 8.791624415
C202: 04/29/2012 | D202: 05:20:04 | E202: 20:35:01.231 | F202: 8.750491401 | G202: 5701 | H202: =IF($B$10=1,IF(MATCH($L202,DATE(YEAR($L202),{1,3,11},{1,15,8})-WEEKDAY(DATE(YEAR($L202),{1,3,11},7)))=2,1,0),0) -> 1 | I202: 1.149319803 | J202: 20:35:01.231 | K202: 12:20:04.384 | L202: 2012-04-29 | M202: 06:10:36.790 | N202: 19:50:19.450 | O202: 119 | P202: 20:35:01.231 | Q202: 8.7505981 | R202: 0 | S202: 8.7505981
C203: 04/30/2012 | D203: 05:18:43 | E203: 20:36:06.823 | F203: 8.709771261 | G203: 5767 | H203: =IF($B$10=1,IF(MATCH($L203,DATE(YEAR($L203),{1,3,11},{1,15,8})-WEEKDAY(DATE(YEAR($L203),{1,3,11},7)))=2,1,0),0) -> 1 | I203: 1.150078975 | J203: 20:36:06.823 | K203: 12:18:43.330 | L203: 2012-04-30 | M203: 06:09:25.349 | N203: 19:51:16.798 | O203: 120 | P203: 20:36:06.823 | Q203: 8.709862868 | R203: 0 | S203: 8.709862868
C204: 05/01/2012 | D204: 05:17:23 | E204: 20:37:12.398 | F204: 8.669333773 | G204: 5832 | H204: =IF($B$10=1,IF(MATCH($L204,DATE(YEAR($L204),{1,3,11},{1,15,8})-WEEKDAY(DATE(YEAR($L204),{1,3,11},7)))=2,1,0),0) -> 1 | I204: 1.150837945 | J204: 20:37:12.398 | K204: 12:17:23.365 | L204: 2012-05-01 | M204: 06:08:15.097 | N204: 19:52:14.040 | O204: 121 | P204: 20:37:12.398 | Q204: 8.669435248 | R204: 0 | S204: 8.669435248
C205: 05/02/2012 | D205: 05:16:05 | E205: 20:38:17.932 | F205: 8.629463232 | G205: 5898 | H205: =IF($B$10=1,IF(MATCH($L205,DATE(YEAR($L205),{1,3,11},{1,15,8})-WEEKDAY(DATE(YEAR($L205),{1,3,11},7)))=2,1,0),0) -> 1 | I205: 1.151596439 | J205: 20:38:17.932 | K205: 12:16:04.528 | L205: 2012-05-02 | M205: 06:07:06.062 | N205: 19:53:11.160 | O205: 122 | P205: 20:38:17.932 | Q205: 8.629332202 | R205: 0 | S205: 8.629332202
C206: 05/03/2012 | D206: 05:14:47 | E206: 20:39:23.400 | F206: 8.58961099 | G206: 5963 | H206: =IF($B$10=1,IF(MATCH($L206,DATE(YEAR($L206),{1,3,11},{1,15,8})-WEEKDAY(DATE(YEAR($L206),{1,3,11},7)))=2,1,0),0) -> 1 | I206: 1.152354172 | J206: 20:39:23.400 | K206: 12:14:46.856 | L206: 2012-05-03 | M206: 06:05:58.274 | N206: 19:54:08.141 | O206: 123 | P206: 20:39:23.400 | Q206: 8.589571122 | R206: 0 | S206: 8.589571122
C207: 05/04/2012 | D207: 05:13:30 | E207: 20:40:28.776 | F207: 8.550062126 | G207: 6029 | H207: =IF($B$10=1,IF(MATCH($L207,DATE(YEAR($L207),{1,3,11},{1,15,8})-WEEKDAY(DATE(YEAR($L207),{1,3,11},7)))=2,1,0),0) -> 1 | I207: 1.153110837 | J207: 20:40:28.776 | K207: 12:13:30.388 | L207: 2012-05-04 | M207: 06:04:51.763 | N207: 19:55:04.964 | O207: 124 | P207: 20:40:28.776 | Q207: 8.550169828 | R207: 0 | S207: 8.550169828
C208: 05/05/2012 | D208: 05:12:15 | E208: 20:41:34.032 | F208: 8.511102115 | G208: 6094 | H208: =IF($B$10=1,IF(MATCH($L208,DATE(YEAR($L208),{1,3,11},{1,15,8})-WEEKDAY(DATE(YEAR($L208),{1,3,11},7)))=2,1,0),0) -> 1 | I208: 1.153866116 | J208: 20:41:34.032 | K208: 12:12:15.160 | L208: 2012-05-05 | M208: 06:03:46.556 | N208: 19:56:01.610 | O208: 125 | P208: 20:41:34.032 | Q208: 8.511146555 | R208: 0 | S208: 8.511146555
C209: 05/06/2012 | D209: 05:11:01 | E209: 20:42:39.139 | F209: 8.472461271 | G209: 6159 | H209: =IF($B$10=1,IF(MATCH($L209,DATE(YEAR($L209),{1,3,11},{1,15,8})-WEEKDAY(DATE(YEAR($L209),{1,3,11},7)))=2,1,0),0) -> 1 | I209: 1.154619669 | J209: 20:42:39.139 | K209: 12:11:01.211 | L209: 2012-05-06 | M209: 06:02:42.682 | N209: 19:56:58.057 | O209: 126 | P209: 20:42:39.139 | Q209: 8.472519952 | R209: 0 | S209: 8.472519952
C210: 05/07/2012 | D210: 05:09:49 | E210: 20:43:44.067 | F210: 8.434425856 | G210: 6224 | H210: =IF($B$10=1,IF(MATCH($L210,DATE(YEAR($L210),{1,3,11},{1,15,8})-WEEKDAY(DATE(YEAR($L210),{1,3,11},7)))=2,1,0),0) -> 1 | I210: 1.155371145 | J210: 20:43:44.067 | K210: 12:09:48.580 | L210: 2012-05-07 | M210: 06:01:40.169 | N210: 19:57:54.284 | O210: 127 | P210: 20:43:44.067 | Q210: 8.434309069 | R210: 0 | S210: 8.434309069
C211: =TEXT(L211,"mm/dd/yyyy") -> 05/08/2012 | D211: =TEXT(dawn($B$4,$B$5,YEAR($C211+1),MONTH($C211+1),DAY($C211+1),$B$9,$H211,$D$6),"hh:mm:ss") -> 05:08:37 | E211: =IF(dusk($B$4,$B$5,YEAR(C211),MONTH(C211),DAY(C211),$B$9,$H211,$D$5)<$G$8,$G$8,dusk($B$4,$B$5,YEAR(C211),MONTH(C211),DAY(C211),$B$9,$H211,$D$5)) -> 20:44:48.783 | F211: =((TIME(23,59,59.999)-E211)+D211)*24 -> 8.396449195 | G211: 6289 | H211: =IF($B$10=1,IF(MATCH($L211,DATE(YEAR($L211),{1,3,11},{1,15,8})-WEEKDAY(DATE(YEAR($L211),{1,3,11},7)))=2,1,0),0) -> 1 | I211: =dusk($B$4,$B$5,YEAR($C211),MONTH($C211),DAY($C211),0,0,$D$5) -> 1.156120172 | J211: =dusk($B$4,$B$5,YEAR($C211),MONTH($C211),DAY($C211),$B$9,$H211,$D$5) -> 20:44:48.783 | K211: 12:08:37.303 | L211: 2012-05-08 | M211: 06:00:39.046 | N211: 19:58:50.268 | O211: 128 | P211: 20:44:48.783 | Q211: 8.396533344 | R211: 0 | S211: 8.396533344
C212: 05/09/2012 | D212: 05:07:27 | E212: 20:45:53.254 | F212: 8.359096111 | G212: =HOUR(E212-$C$77)*3600+MINUTE(E212-$C$77)*60+SECOND(E212-$C$77) -> 6353 | H212: =IF($B$10=1,IF(MATCH($L212,DATE(YEAR($L212),{1,3,11},{1,15,8})-WEEKDAY(DATE(YEAR($L212),{1,3,11},7)))=2,1,0),0) -> 1 | I212: 1.156866366 | J212: 20:45:53.254 | K212: =dawn($B$4,$B$5,YEAR($C212+1),MONTH($C212+1),DAY($C212+1),0,0,$D$6) -> 12:07:27.419 | L212: 2012-05-09 | M212: =dawn($B$4,$B$5,YEAR($C212+1),MONTH($C212+1),DAY($C212+1),$B$9,$H212,0) -> 05:59:39.338 | N212: =dusk($B$4,$B$5,YEAR(C212),MONTH(C212),DAY(C212),$B$9,$H212,0) -> 19:59:45.984 | O212: 129 | P212: =MIN(dusk($B$4,$B$5,YEAR(C212),MONTH(C212),DAY(C212),0,0,$D$5),E212) -> 20:45:53.254 | Q212: =IF(I212>K212,((TIME(23,59,59.999)-I212)+K212)*24,(K212-I212)*24) -> 8.359212592 | R212: =(E212-J212)*24 -> 0 | S212: =(Q212-R212) -> 8.359212592
C213: 05/10/2012 | D213: 05:06:19 | E213: 20:46:57.445 | F213: 8.322376257 | G213: 6417 | H213: =IF($B$10=1,IF(MATCH($L213,DATE(YEAR($L213),{1,3,11},{1,15,8})-WEEKDAY(DATE(YEAR($L213),{1,3,11},7)))=2,1,0),0) -> 1 | I213: 1.157609323 | J213: 20:46:57.445 | K213: 12:06:18.967 | L213: =L212+1 -> 2012-05-10 | M213: 05:58:41.073 | N213: 20:00:41.406 | O213: =O212+1 -> 130 | P213: 20:46:57.445 | Q213: 8.322366987 | R213: 0 | S213: 8.322366987
C214: 05/11/2012 | D214: 05:05:12 | E214: 20:48:01.321 | F214: 8.286021887 | G214: 6481 | H214: =IF($B$10=1,IF(MATCH($L214,DATE(YEAR($L214),{1,3,11},{1,15,8})-WEEKDAY(DATE(YEAR($L214),{1,3,11},7)))=2,1,0),0) -> 1 | I214: 1.158348625 | J214: 20:48:01.321 | K214: 12:05:11.983 | L214: 2012-05-11 | M214: 05:57:44.279 | N214: 20:01:36.510 | O214: 131 | P214: 20:48:01.321 | Q214: 8.286017047 | R214: 0 | S214: 8.286017047
C215: 05/12/2012 | D215: 05:04:07 | E215: 20:49:04.844 | F215: 8.250321186 | G215: 6545 | H215: =IF($B$10=1,IF(MATCH($L215,DATE(YEAR($L215),{1,3,11},{1,15,8})-WEEKDAY(DATE(YEAR($L215),{1,3,11},7)))=2,1,0),0) -> 1 | I215: 1.159083839 | J215: 20:49:04.844 | K215: 12:04:06.505 | L215: 2012-05-12 | M215: 05:56:48.979 | N215: 20:02:31.266 | O215: 132 | P215: 20:49:04.844 | Q215: 8.250183611 | R215: 0 | S215: 8.250183611
C216: 05/13/2012 | D216: 05:03:03 | E216: 20:50:07.974 | F216: 8.215007144 | G216: 6608 | H216: =IF($B$10=1,IF(MATCH($L216,DATE(YEAR($L216),{1,3,11},{1,15,8})-WEEKDAY(DATE(YEAR($L216),{1,3,11},7)))=2,1,0),0) -> 1 | I216: 1.159814517 | J216: 20:50:07.974 | K216: 12:03:02.570 | L216: 2012-05-13 | M216: 05:55:55.201 | N216: 20:03:25.648 | O216: 133 | P216: 20:50:07.974 | Q216: 8.214887821 | R216: 0 | S216: 8.214887821
C217: 05/14/2012 | D217: 05:02:00 | E217: 20:51:10.673 | F217: 8.180090886 | G217: 6671 | H217: =IF($B$10=1,IF(MATCH($L217,DATE(YEAR($L217),{1,3,11},{1,15,8})-WEEKDAY(DATE(YEAR($L217),{1,3,11},7)))=2,1,0),0) -> 1 | I217: 1.160540195 | J217: 20:51:10.673 | K217: 12:02:00.217 | L217: 2012-05-14 | M217: 05:55:02.968 | N217: 20:04:19.624 | O217: 134 | P217: 20:51:10.673 | Q217: 8.180151093 | R217: 0 | S217: 8.180151093
C218: 05/15/2012 | D218: 05:00:59 | E218: 20:52:12.898 | F218: 8.14586166 | G218: 6733 | H218: =IF($B$10=1,IF(MATCH($L218,DATE(YEAR($L218),{1,3,11},{1,15,8})-WEEKDAY(DATE(YEAR($L218),{1,3,11},7)))=2,1,0),0) -> 1 | I218: 1.161260394 | J218: 20:52:12.898 | K218: 12:00:59.480 | L218: 2012-05-15 | M218: 05:54:12.306 | N218: 20:05:13.165 | O218: 135 | P218: 20:52:12.898 | Q218: 8.145995095 | R218: 0 | S218: 8.145995095
C219: 05/16/2012 | D219: 05:00:00 | E219: 20:53:14.607 | F219: 8.112331263 | G219: 6795 | H219: =IF($B$10=1,IF(MATCH($L219,DATE(YEAR($L219),{1,3,11},{1,15,8})-WEEKDAY(DATE(YEAR($L219),{1,3,11},7)))=2,1,0),0) -> 1 | I219: 1.161974623 | J219: 20:53:14.607 | K219: 12:00:00.398 | L219: 2012-05-16 | M219: 05:53:23.237 | N219: 20:06:06.239 | O219: 136 | P219: 20:53:14.607 | Q219: 8.112441714 | R219: 0 | S219: 8.112441714
C220: 05/17/2012 | D220: 04:59:03 | E220: 20:54:15.757 | F220: 8.079511813 | G220: 6856 | H220: =IF($B$10=1,IF(MATCH($L220,DATE(YEAR($L220),{1,3,11},{1,15,8})-WEEKDAY(DATE(YEAR($L220),{1,3,11},7)))=2,1,0),0) -> 1 | I220: 1.162682378 | J220: 20:54:15.757 | K220: 11:59:03.004 | L220: 2012-05-17 | M220: 05:52:35.784 | N220: 20:06:58.813 | O220: 137 | P220: 20:54:15.757 | Q220: 8.07951303 | R220: 0 | S220: 8.07951303
C221: 05/18/2012 | D221: 04:58:07 | E221: 20:55:16.303 | F221: 8.047137951 | G221: 6916 | H221: =IF($B$10=1,IF(MATCH($L221,DATE(YEAR($L221),{1,3,11},{1,15,8})-WEEKDAY(DATE(YEAR($L221),{1,3,11},7)))=2,1,0),0) -> 1 | I221: 1.163383141 | J221: 20:55:16.303 | K221: 11:58:07.336 | L221: 2012-05-18 | M221: 05:51:49.970 | N221: 20:07:50.855 | O221: 138 | P221: 20:55:16.303 | Q221: 8.047231276 | R221: 0 | S221: 8.047231276
C222: 05/19/2012 | D222: 04:57:13 | E222: 20:56:16.199 | F222: 8.015500156 | G222: 6976 | H222: =IF($B$10=1,IF(MATCH($L222,DATE(YEAR($L222),{1,3,11},{1,15,8})-WEEKDAY(DATE(YEAR($L222),{1,3,11},7)))=2,1,0),0) -> 1 | I222: 1.164076382 | J222: 20:56:16.199 | K222: 11:57:13.427 | L222: 2012-05-19 | M222: 05:51:05.815 | N222: 20:08:42.330 | O222: 139 | P222: 20:56:16.199 | Q222: 8.01561881 | R222: 0 | S222: 8.01561881
C223: 05/20/2012 | D223: 04:56:21 | E223: 20:57:15.399 | F223: 7.984611398 | G223: 7035 | H223: =IF($B$10=1,IF(MATCH($L223,DATE(YEAR($L223),{1,3,11},{1,15,8})-WEEKDAY(DATE(YEAR($L223),{1,3,11},7)))=2,1,0),0) -> 1 | I223: 1.164761562 | J223: 20:57:15.399 | K223: 11:56:21.312 | L223: 2012-05-20 | M223: 05:50:23.340 | N223: 20:09:33.203 | O223: 140 | P223: 20:57:15.399 | Q223: 7.984698071 | R223: 0 | S223: 7.984698071
C224: 05/21/2012 | D224: 04:55:31 | E224: 20:58:13.854 | F224: 7.954484891 | G224: 7094 | H224: =IF($B$10=1,IF(MATCH($L224,DATE(YEAR($L224),{1,3,11},{1,15,8})-WEEKDAY(DATE(YEAR($L224),{1,3,11},7)))=2,1,0),0) -> 1 | I224: 1.16543813 | J224: 20:58:13.854 | K224: 11:55:31.024 | L224: 2012-05-21 | M224: 05:49:42.565 | N224: 20:10:23.438 | O224: 141 | P224: 20:58:13.854 | Q224: 7.954491541 | R224: 0 | S224: 7.954491541
C225: 05/22/2012 | D225: 04:54:43 | E225: 20:59:11.517 | F225: 7.925134074 | G225: 7152 | H225: =IF($B$10=1,IF(MATCH($L225,DATE(YEAR($L225),{1,3,11},{1,15,8})-WEEKDAY(DATE(YEAR($L225),{1,3,11},7)))=2,1,0),0) -> 1 | I225: 1.166105525 | J225: 20:59:11.517 | K225: 11:54:42.595 | L225: 2012-05-22 | M225: 05:49:03.509 | N225: 20:11:12.999 | O225: 142 | P225: 20:59:11.517 | Q225: 7.925021702 | R225: 0 | S225: 7.925021702
C226: 05/23/2012 | D226: 04:53:56 | E226: 21:00:08.339 | F226: 7.896294811 | G226: 7208 | H226: =IF($B$10=1,IF(MATCH($L226,DATE(YEAR($L226),{1,3,11},{1,15,8})-WEEKDAY(DATE(YEAR($L226),{1,3,11},7)))=2,1,0),0) -> 1 | I226: 1.166763179 | J226: 21:00:08.339 | K226: 11:53:56.058 | L226: 2012-05-23 | M226: 05:48:26.188 | N226: 20:12:01.850 | O226: 143 | P226: 21:00:08.339 | Q226: 7.896310992 | R226: 0 | S226: 7.896310992
C227: 05/24/2012 | D227: 04:53:11 | E227: 21:01:04.269 | F227: 7.868258695 | G227: 7264 | H227: =IF($B$10=1,IF(MATCH($L227,DATE(YEAR($L227),{1,3,11},{1,15,8})-WEEKDAY(DATE(YEAR($L227),{1,3,11},7)))=2,1,0),0) -> 1 | I227: 1.167410517 | J227: 21:01:04.269 | K227: 11:53:11.443 | L227: 2012-05-24 | M227: 05:47:50.619 | N227: 20:12:49.951 | O227: 144 | P227: 21:01:04.269 | Q227: 7.868381762 | R227: 0 | S227: 7.868381762
C228: 05/25/2012 | D228: 04:52:29 | E228: 21:01:59.257 | F228: 7.841317475 | G228: 7319 | H228: =IF($B$10=1,IF(MATCH($L228,DATE(YEAR($L228),{1,3,11},{1,15,8})-WEEKDAY(DATE(YEAR($L228),{1,3,11},7)))=2,1,0),0) -> 1 | I228: 1.168046957 | J228: 21:01:59.257 | K228: 11:52:28.779 | L228: 2012-05-25 | M228: 05:47:16.818 | N228: 20:13:37.266 | O228: 145 | P228: 21:01:59.257 | Q228: 7.84125622 | R228: 0 | S228: 7.84125622
C229: 05/26/2012 | D229: 04:51:48 | E229: 21:02:53.253 | F229: 7.814929686 | G229: 7373 | H229: =IF($B$10=1,IF(MATCH($L229,DATE(YEAR($L229),{1,3,11},{1,15,8})-WEEKDAY(DATE(YEAR($L229),{1,3,11},7)))=2,1,0),0) -> 1 | I229: 1.168671911 | J229: 21:02:53.253 | K229: 11:51:48.096 | L229: 2012-05-26 | M229: 05:46:44.799 | N229: 20:14:23.756 | O229: 146 | P229: 21:02:53.253 | Q229: 7.814956387 | R229: 0 | S229: 7.814956387
C230: 05/27/2012 | D230: 04:51:09 | E230: 21:03:46.206 | F230: 7.789387297 | G230: 7426 | H230: =IF($B$10=1,IF(MATCH($L230,DATE(YEAR($L230),{1,3,11},{1,15,8})-WEEKDAY(DATE(YEAR($L230),{1,3,11},7)))=2,1,0),0) -> 1 | I230: 1.169284789 | J230: 21:03:46.206 | K230: 11:51:09.420 | L230: 2012-05-27 | M230: 05:46:14.575 | N230: 20:15:09.381 | O230: 147 | P230: 21:03:46.206 | Q230: 7.789504046 | R230: 0 | S230: 7.789504046
C231: 05/28/2012 | D231: 04:50:33 | E231: 21:04:38.064 | F231: 7.764982339 | G231: 7478 | H231: =IF($B$10=1,IF(MATCH($L231,DATE(YEAR($L231),{1,3,11},{1,15,8})-WEEKDAY(DATE(YEAR($L231),{1,3,11},7)))=2,1,0),0) -> 1 | I231: 1.169884995 | J231: 21:04:38.064 | K231: 11:50:32.778 | L231: 2012-05-28 | M231: 05:45:46.159 | N231: 20:15:54.103 | O231: 148 | P231: 21:04:38.064 | Q231: 7.764920685 | R231: 0 | S231: 7.764920685
C232: 05/29/2012 | D232: 04:49:58 | E232: 21:05:28.775 | F232: 7.741173549 | G232: 7529 | H232: =IF($B$10=1,IF(MATCH($L232,DATE(YEAR($L232),{1,3,11},{1,15,8})-WEEKDAY(DATE(YEAR($L232),{1,3,11},7)))=2,1,0),0) -> 1 | I232: 1.170471935 | J232: 21:05:28.775 | K232: 11:49:58.194 | L232: 2012-05-29 | M232: 05:45:19.560 | N232: 20:16:37.881 | O232: 149 | P232: 21:05:28.775 | Q232: 7.741227444 | R232: 0 | S232: 7.741227444
C233: 05/30/2012 | D233: 04:49:26 | E233: 21:06:18.289 | F233: 7.718530779 | G233: 7578 | H233: =IF($B$10=1,IF(MATCH($L233,DATE(YEAR($L233),{1,3,11},{1,15,8})-WEEKDAY(DATE(YEAR($L233),{1,3,11},7)))=2,1,0),0) -> 1 | I233: 1.171045014 | J233: 21:06:18.289 | K233: 11:49:25.691 | L233: 2012-05-30 | M233: 05:44:54.789 | N233: 20:17:20.677 | O233: 150 | P233: 21:06:18.289 | Q233: 7.718445064 | R233: 0 | S233: 7.718445064
C234: 05/31/2012 | D234: 04:48:55 | E234: 21:07:06.554 | F234: 7.696512743 | G234: 7627 | H234: =IF($B$10=1,IF(MATCH($L234,DATE(YEAR($L234),{1,3,11},{1,15,8})-WEEKDAY(DATE(YEAR($L234),{1,3,11},7)))=2,1,0),0) -> 1 | I234: 1.171603636 | J234: 21:07:06.554 | K234: 11:48:55.292 | L234: 2012-05-31 | M234: 05:44:31.853 | N234: 20:18:02.450 | O234: 151 | P234: 21:07:06.554 | Q234: 7.696593825 | R234: 0 | S234: 7.696593825
C235: 06/01/2012 | D235: 04:48:27 | E235: 21:07:53.519 | F235: 7.675689205 | G235: 7674 | H235: =IF($B$10=1,IF(MATCH($L235,DATE(YEAR($L235),{1,3,11},{1,15,8})-WEEKDAY(DATE(YEAR($L235),{1,3,11},7)))=2,1,0),0) -> 1 | I235: 1.172147209 | J235: 21:07:53.519 | K235: 11:48:27.015 | L235: 2012-06-01 | M235: 05:44:10.759 | N235: 20:18:43.162 | O235: 152 | P235: 21:07:53.519 | Q235: 7.675693496 | R235: 0 | S235: 7.675693496
C236: 06/02/2012 | D236: 04:48:01 | E236: 21:08:39.133 | F236: 7.655796504 | G236: 7719 | H236: =IF($B$10=1,IF(MATCH($L236,DATE(YEAR($L236),{1,3,11},{1,15,8})-WEEKDAY(DATE(YEAR($L236),{1,3,11},7)))=2,1,0),0) -> 1 | I236: 1.172675146 | J236: 21:08:39.133 | K236: 11:48:00.880 | L236: 2012-06-02 | M236: 05:43:51.512 | N236: 20:19:22.771 | O236: 153 | P236: 21:08:39.133 | Q236: 7.655763275 | R236: 0 | S236: 7.655763275
C237: 06/03/2012 | D237: 04:47:37 | E237: 21:09:23.345 | F237: 7.636848628 | G237: 7763 | H237: =IF($B$10=1,IF(MATCH($L237,DATE(YEAR($L237),{1,3,11},{1,15,8})-WEEKDAY(DATE(YEAR($L237),{1,3,11},7)))=2,1,0),0) -> 1 | I237: 1.173186863 | J237: 21:09:23.345 | K237: 11:47:36.903 | L237: 2012-06-03 | M237: 05:43:34.117 | N237: 20:20:01.239 | O237: 154 | P237: 21:09:23.345 | Q237: 7.636821731 | R237: 0 | S237: 7.636821731
C238: 06/04/2012 | D238: 04:47:15 | E238: 21:10:06.106 | F238: 7.618859405 | G238: 7806 | H238: =IF($B$10=1,IF(MATCH($L238,DATE(YEAR($L238),{1,3,11},{1,15,8})-WEEKDAY(DATE(YEAR($L238),{1,3,11},7)))=2,1,0),0) -> 1 | I238: 1.173681784 | J238: 21:10:06.106 | K238: 11:47:15.098 | L238: 2012-06-04 | M238: 05:43:18.574 | N238: 20:20:38.527 | O238: 155 | P238: 21:10:06.106 | Q238: 7.618886754 | R238: 0 | S238: 7.618886754
C239: 06/05/2012 | D239: 04:46:55 | E239: 21:10:47.367 | F239: 7.601842469 | G239: 7847 | H239: =IF($B$10=1,IF(MATCH($L239,DATE(YEAR($L239),{1,3,11},{1,15,8})-WEEKDAY(DATE(YEAR($L239),{1,3,11},7)))=2,1,0),0) -> 1 | I239: 1.174159342 | J239: 21:10:47.367 | K239: 11:46:55.479 | L239: 2012-06-05 | M239: 05:43:04.886 | N239: 20:21:14.595 | O239: 156 | P239: 21:10:47.367 | Q239: 7.601975495 | R239: 0 | S239: 7.601975495
C240: 06/06/2012 | D240: 04:46:38 | E240: 21:11:27.080 | F240: 7.586089002 | G240: 7887 | H240: =IF($B$10=1,IF(MATCH($L240,DATE(YEAR($L240),{1,3,11},{1,15,8})-WEEKDAY(DATE(YEAR($L240),{1,3,11},7)))=2,1,0),0) -> 1 | I240: 1.174618977 | J240: 21:11:27.080 | K240: 11:46:38.055 | L240: 2012-06-06 | M240: 05:42:53.052 | N240: 20:21:49.406 | O240: 157 | P240: 21:11:27.080 | Q240: 7.586104315 | R240: 0 | S240: 7.586104315
C241: 06/07/2012 | D241: 04:46:23 | E241: 21:12:05.196 | F241: 7.571334366 | G241: 7925 | H241: =IF($B$10=1,IF(MATCH($L241,DATE(YEAR($L241),{1,3,11},{1,15,8})-WEEKDAY(DATE(YEAR($L241),{1,3,11},7)))=2,1,0),0) -> 1 | I241: 1.175060142 | J241: 21:12:05.196 | K241: 11:46:22.836 | L241: 2012-06-07 | M241: 05:42:43.068 | N241: 20:22:22.920 | O241: 158 | P241: 21:12:05.196 | Q241: 7.57128873 | R241: 0 | S241: 7.57128873
C242: 06/08/2012 | D242: 04:46:10 | E242: 21:12:41.671 | F242: 7.55759141 | G242: 7962 | H242: =IF($B$10=1,IF(MATCH($L242,DATE(YEAR($L242),{1,3,11},{1,15,8})-WEEKDAY(DATE(YEAR($L242),{1,3,11},7)))=2,1,0),0) -> 1 | I242: 1.175482302 | J242: 21:12:41.671 | K242: 11:46:09.827 | L242: 2012-06-08 | M242: 05:42:34.932 | N242: 20:22:55.102 | O242: 159 | P242: 21:12:41.671 | Q242: 7.557543362 | R242: 0 | S242: 7.557543362
C243: 06/09/2012 | D243: 04:45:59 | E243: 21:13:16.458 | F243: 7.54487265 | G243: 7996 | H243: =IF($B$10=1,IF(MATCH($L243,DATE(YEAR($L243),{1,3,11},{1,15,8})-WEEKDAY(DATE(YEAR($L243),{1,3,11},7)))=2,1,0),0) -> 1 | I243: 1.175884936 | J243: 21:13:16.458 | K243: 11:45:59.033 | L243: 2012-06-09 | M243: 05:42:28.638 | N243: 20:23:25.913 | O243: 160 | P243: 21:13:16.458 | Q243: 7.544881889 | R243: 0 | S243: 7.544881889
C244: 06/10/2012 | D244: 04:45:50 | E244: 21:13:49.515 | F244: 7.533190247 | G244: 8030 | H244: =IF($B$10=1,IF(MATCH($L244,DATE(YEAR($L244),{1,3,11},{1,15,8})-WEEKDAY(DATE(YEAR($L244),{1,3,11},7)))=2,1,0),0) -> 1 | I244: 1.176267536 | J244: 21:13:49.515 | K244: 11:45:50.456 | L244: 2012-06-10 | M244: 05:42:24.178 | N244: 20:23:55.319 | O244: 161 | P244: 21:13:49.515 | Q244: 7.533317001 | R244: 0 | S244: 7.533317001
C245: 06/11/2012 | D245: 04:45:44 | E245: 21:14:20.799 | F245: 7.522833745 | G245: 8061 | H245: =IF($B$10=1,IF(MATCH($L245,DATE(YEAR($L245),{1,3,11},{1,15,8})-WEEKDAY(DATE(YEAR($L245),{1,3,11},7)))=2,1,0),0) -> 1 | I245: 1.176629612 | J245: 21:14:20.799 | K245: 11:45:44.096 | L245: 2012-06-11 | M245: 05:42:21.545 | N245: 20:24:23.283 | O245: 162 | P245: 21:14:20.799 | Q245: 7.522860353 | R245: 0 | S245: 7.522860353
C246: 06/12/2012 | D246: 04:45:40 | E246: 21:14:50.268 | F246: 7.513536716 | G246: 8090 | H246: =IF($B$10=1,IF(MATCH($L246,DATE(YEAR($L246),{1,3,11},{1,15,8})-WEEKDAY(DATE(YEAR($L246),{1,3,11},7)))=2,1,0),0) -> 1 | I246: 1.176970692 | J246: 21:14:50.268 | K246: 11:45:39.949 | L246: 2012-06-12 | M246: 05:42:20.727 | N246: 20:24:49.773 | O246: 163 | P246: 21:14:50.268 | Q246: 7.513522525 | R246: 0 | S246: 7.513522525
C247: 06/13/2012 | D247: 04:45:38 | E247: 21:15:17.884 | F247: 7.505310059 | G247: 8118 | H247: =IF($B$10=1,IF(MATCH($L247,DATE(YEAR($L247),{1,3,11},{1,15,8})-WEEKDAY(DATE(YEAR($L247),{1,3,11},7)))=2,1,0),0) -> 1 | I247: 1.177290322 | J247: 21:15:17.884 | K247: 11:45:38.011 | L247: 2012-06-13 | M247: 05:42:21.713 | N247: 20:25:14.753 | O247: 164 | P247: 21:15:17.884 | Q247: 7.505312987 | R247: 0 | S247: 7.505312987
C248: 06/14/2012 | D248: 04:45:38 | E248: 21:15:43.609 | F248: 7.498164199 | G248: 8144 | H248: =IF($B$10=1,IF(MATCH($L248,DATE(YEAR($L248),{1,3,11},{1,15,8})-WEEKDAY(DATE(YEAR($L248),{1,3,11},7)))=2,1,0),0) -> 1 | I248: 1.177588066 | J248: 21:15:43.609 | K248: 11:45:38.273 | L248: 2012-06-14 | M248: 05:42:24.489 | N248: 20:25:38.193 | O248: 165 | P248: 21:15:43.609 | Q248: 7.498240064 | R248: 0 | S248: 7.498240064
C249: 06/15/2012 | D249: 04:45:41 | E249: 21:16:07.407 | F249: 7.492386839 | G249: 8167 | H249: =IF($B$10=1,IF(MATCH($L249,DATE(YEAR($L249),{1,3,11},{1,15,8})-WEEKDAY(DATE(YEAR($L249),{1,3,11},7)))=2,1,0),0) -> 1 | I249: 1.177863511 | J249: 21:16:07.407 | K249: 11:45:40.727 | L249: 2012-06-15 | M249: 05:42:29.041 | N249: 20:26:00.060 | O249: 166 | P249: 21:16:07.407 | Q249: 7.492310903 | R249: 0 | S249: 7.492310903
C250: 06/16/2012 | D250: 04:45:45 | E250: 21:16:29.245 | F250: 7.487431823 | G250: 8189 | H250: =IF($B$10=1,IF(MATCH($L250,DATE(YEAR($L250),{1,3,11},{1,15,8})-WEEKDAY(DATE(YEAR($L250),{1,3,11},7)))=2,1,0),0) -> 1 | I250: 1.178116267 | J250: 21:16:29.245 | K250: 11:45:45.359 | L250: 2012-06-16 | M250: 05:42:35.351 | N250: 20:26:20.326 | O250: 167 | P250: 21:16:29.245 | Q250: 7.487531453 | R250: 0 | S250: 7.487531453
C251: 06/17/2012 | D251: 04:45:52 | E251: 21:16:49.091 | F251: 7.483863565 | G251: 8209 | H251: =IF($B$10=1,IF(MATCH($L251,DATE(YEAR($L251),{1,3,11},{1,15,8})-WEEKDAY(DATE(YEAR($L251),{1,3,11},7)))=2,1,0),0) -> 1 | I251: 1.178345963 | J251: 21:16:49.091 | K251: 11:45:52.154 | L251: 2012-06-17 | M251: 05:42:43.401 | N251: 20:26:38.961 | O251: 168 | P251: 21:16:49.091 | Q251: 7.483906437 | R251: 0 | S251: 7.483906437
C252: 06/18/2012 | D252: 04:46:01 | E252: 21:17:06.915 | F252: 7.481412575 | G252: 8227 | H252: =IF($B$10=1,IF(MATCH($L252,DATE(YEAR($L252),{1,3,11},{1,15,8})-WEEKDAY(DATE(YEAR($L252),{1,3,11},7)))=2,1,0),0) -> 1 | I252: 1.178552254 | J252: 21:17:06.915 | K252: 11:46:01.096 | L252: 2012-06-18 | M252: 05:42:53.172 | N252: 20:26:55.937 | O252: 169 | P252: 21:17:06.915 | Q252: 7.48143934 | R252: 0 | S252: 7.48143934
C253: 06/19/2012 | D253: 04:46:12 | E253: 21:17:22.688 | F253: 7.480086562 | G253: 8243 | H253: =IF($B$10=1,IF(MATCH($L253,DATE(YEAR($L253),{1,3,11},{1,15,8})-WEEKDAY(DATE(YEAR($L253),{1,3,11},7)))=2,1,0),0) -> 1 | I253: 1.178734819 | J253: 21:17:22.688 | K253: 11:46:12.165 | L253: 2012-06-19 | M253: 05:43:04.641 | N253: 20:27:11.229 | O253: 170 | P253: 21:17:22.688 | Q253: 7.480132391 | R253: 0 | S253: 7.480132391
... 1694 more rows

Sheet solar_position
A1: Calculation of solar azimuth and elevation based on the calculation procedure by NOAA (http://www.srrb.noaa.gov/highlights/sunrise/azel.html)
A3: Input
A4: latitude in decimal degrees (positive in northern hemisphere) | B4: =47+36/60 -> 47.6
A5: longitude in decimal degrees (negative for western hemisphere) | B5: =-122-19/60 -> -122.3166667
A6: year | B6: 2001
A7: month | B7: 6
A8: day | B8: 21
A9: hours | B9: 13
A10: minutes | B10: 11
A11: seconds | B11: 0
A12: time zone in hours relative to GMT/UTC (PST= -8, MST= -7, CST= -6, EST= -5) | B12: -8
A13: daylight savings time (no= 0, yes= 1) | B13: 1
A15: Output
A16: solar azimuth (degrees clockwise from north) | B16: =solarazimuth(B4,B5,B6,B7,B8,B9,B10,B11,B12,B13) -> 179.9336529
A17: solar elevation (degrees from horizon) | B17: =solarelevation(B4,B5,B6,B7,B8,B9,B10,B11,B12,B13) -> 65.84507751
